Workbook

Sheet Supplementary Table S1
B1: Strain | C1: Previous nomenclature | D1: Isolation source | E1: Habitat/Lifestyle | F1: flag-1 locus | G1: flag-2 locus | H1: Notes
A2: Budviciaceae
B3: Budvicia aquatica DSM 5075 | D3: Environment | E3: Freshwater | F3: - | G3: +
B4: Budvicia aquatica FDAARGOS_387 | D4: Environment | E4: Freshwater | F4: - | G4: +
B5: Leminorella grimontii ATCC 33999 | D5: Human | E5: Clinical | F5: - | G5: +
B6: Leminorella richardiiNCTC 12151 | D6: Human | E6: Clinical | F6: - | G6: - | H6: Non-motile
B7: Limnobaculum parvum HYN0051 | D7: Environment | E7: Freshwater | F7: - | G7: - | H7: Non-motile
B8: Pragia fontium 24613 | D8: Environment | E8: Other | F8: - | G8: +
B9: Pragia fontium DSM 5563 | D9: N/A | E9: N/A | F9: - | G9: +
B10: Pragia fontium NCTC12284 | D10: Environment | E10: Freshwater | F10: - | G10: +
B11: Pragia fontium NCTC12285 | D11: Environment | E11: Freshwater | F11: - | G11: +
A13: Enterobacteriaceae
B14: Atlantibacter hermannii DDE1 | D14: Plant | E14: Saprophyte | F14: + | G14: -
B15: Atlantibacter hermannii NBRC 105704 | D15: Human | E15: Clinical | F15: + | G15: -
B16: Atlantibacter subterranea AS_373 | D16: Environment | E16: Hospital | F16: + | G16: -
B17: Atlantibacter subterranea AS_379 | D17: Environment | E17: Hospital | F17: + | G17: -
B18: Atlantibacter subterranea AS_383 | D18: Environment | E18: Hospital | F18: + | G18: -
B19: Buttiauxella agrestis ATCC 33320 | D19: Environment | E19: Freshwater | F19: + | G19: -
B20: Buttiauxella brennerae ATCC 51605 | D20: Animal (mollusc) | E20: Commensal | F20: + | G20: -
B21: Buttiauxella ferragutiae ATCC 51602 | D21: Animal (mollusc) | E21: Commensal | F21: + | G21: -
B22: Buttiauxella gaviniae ATCC 51604 | D22: Animal (mollusc) | E22: Commensal | F22: + | G22: -
B23: Buttiauxella izardii CCUG 35510 | D23: Animal (mollusc) | E23: Commensal | F23: + | G23: -
B24: Buttiauxella noackiae ATCC 51607 | D24: Animal (mollusc) | E24: Commensal | F24: + | G24: +
B25: Buttiauxella noackiae MCE | C25: Buttiauxella agrestis | D25: Environment | E25: Freshwater | F25: + | G25: +
B26: Buttiauxella warmboldiae CCUG 35512 | D26: Animal (mollusc) | E26: Commensal | F26: + | G26: +
B27: Cedecea davisae DSM 4568 | D27: Human | E27: Commensal | F27: + | G27: +
B28: Cedecea lapagei NCTC 11466 | D28: Human | E28: Clinical | F28: + | G28: -
B29: Cedecea michiganensis RC10 | C29: Klebsiella michiganensis | D29: Environment | E29: Soil | F29: + | G29: +
B30: Cedecea neteri ATCC 33855 | D30: Human | E30: Clinical | F30: + | G30: +
B31: Cedecea neteri FDAARGOS_392 | D31: Human | E31: Clinical | F31: + | G31: +
B32: Cedecea sp. nov 1 M006 | C32: Cedecea neteri | D32: Environment | E32: Freshwater | F32: + | G32: +
B33: Cedecea sp. nov 2 ND14a | C33: Cedecea neteri | D33: Environment | E33: Freshwater | F33: + | G33: -
B34: Cedecea sp. nov 3 SSMD04 | C34: Cedecea neteri | D34: Environment | E34: Food (animal produce) | F34: + | G34: +
B35: Citrobacter Clade A (Citrobacter braakii 641_SENT) | D35: Human | E35: Clinical | F35: + | G35: - | H35: flag-2 deleted
B36: Citrobacter Clade A (Citrobacter braakii 980_SSON) | D36: Human | E36: Clinical | F36: + | G36: +
B37: Citrobacter Clade A (Citrobacter braakii 989_CKOS) | D37: Human | E37: Clinical | F37: + | G37: +
B38: Citrobacter Clade A (Citrobacter braakii 1175_SENT) | D38: Human | E38: Clinical | F38: + | G38: +
B39: Citrobacter Clade A (Citrobacter braakii A47) | C39: Citrobacter freundii | D39: Environment | E39: Soil | F39: + | G39: +
B40: Citrobacter Clade A (Citrobacter braakii ATCC 51113) | D40: Animal (reptile) | E40: Commensal | F40: + | G40: +
B41: Citrobacter Clade A (Citrobacter braakii C1710) | D41: Environment | E41: River sediment | F41: + | G41: +
B42: Citrobacter Clade A (Citrobacter braakii CA-26) | D42: Environment | E42: Food (plant produce) | F42: + | G42: - | H42: flag-2 deleted
B43: Citrobacter Clade A (Citrobacter braakii D8) | C43: Citrobacter freundii | D43: Human | E43: Hospital-associated | F43: + | G43: +
B44: Citrobacter Clade A (Citrobacter braakii FDAARGOS_290) | D44: Human | E44: Clinical | F44: + | G44: - | H44: flag-2 deleted
B45: Citrobacter Clade A (Citrobacter braakii GN02600) | D45: Human | E45: Clinical | F45: + | G45: +
B46: Citrobacter Clade A (Citrobacter braakii GTA-817-RBA-P2) | C46: Citrobacter amalonaticus | D46: Environment | E46: Food (animal produce) | F46: + | G46: +
B47: Citrobacter Clade A (Citrobacter braakii GTA-CB01) | D47: Environment | E47: Food (animal produce) | F47: + | G47: +
B48: Citrobacter Clade A (Citrobacter braakii GTA-CB04) | D48: Environment | E48: Food (animal produce) | F48: + | G48: - | H48: flag-2 deleted
B49: Citrobacter Clade A (Citrobacter braakii HH1) | D49: Environment | E49: Biosolids | F49: + | G49: - | H49: flag-2 deleted
B50: Citrobacter Clade A (Citrobacter braakii HH5) | D50: Environment | E50: Biosolids | F50: + | G50: +
B51: Citrobacter Clade A (Citrobacter braakii HH6) | D51: Environment | E51: Biosolids | F51: + | G51: +
B52: Citrobacter Clade A (Citrobacter braakii HH7) | D52: Environment | E52: Biosolids | F52: + | G52: - | H52: flag-2 deleted
B53: Citrobacter Clade A (Citrobacter braakii HH8) | D53: Environment | E53: Biosolids | F53: + | G53: +
B54: Citrobacter Clade A (Citrobacter braakii HH9) | D54: Environment | E54: Biosolids | F54: + | G54: +
B55: Citrobacter Clade A (Citrobacter braakii HH10) | D55: Environment | E55: Biosolids | F55: + | G55: +
B56: Citrobacter Clade A (Citrobacter braakii MH16-522D) | C56: Citrobacter freundii | D56: Human | E56: Clinical | F56: + | G56: - | H56: flag-2 deleted
B57: Citrobacter Clade A (Citrobacter braakii S649) | D57: Environment | E57: Food (plant produce) | F57: + | G57: +
B58: Citrobacter Clade A (Citrobacter braakii S1278) | D58: Environment | E58: Food (plant produce) | F58: + | G58: +
B59: Citrobacter Clade A (Citrobacter braakii S1279) | D59: Environment | E59: Food (plant produce) | F59: + | G59: +
B60: Citrobacter Clade A (Citrobacter braakii S1280) | D60: Environment | E60: Food (plant produce) | F60: + | G60: +
B61: Citrobacter Clade A (Citrobacter braakii S1281) | D61: Environment | E61: Food (plant produce) | F61: + | G61: +
B62: Citrobacter Clade A (Citrobacter braakii S1282) | D62: Environment | E62: Food (plant produce) | F62: + | G62: +
B63: Citrobacter Clade A (Citrobacter braakii S1283) | D63: Environment | E63: Food (plant produce) | F63: + | G63: +
B64: Citrobacter Clade A (Citrobacter braakii SCC4) | D64: Animal (avian) | E64: Commensal | F64: + | G64: +
B65: Citrobacter Clade A (Citrobacter braakii WCHCF65) | C65: Citrobacter freundii | D65: Environment | E65: Hospital-associated | F65: + | G65: +
B66: Citrobacter Clade A (Citrobacter europaeus 67A) | D66: Human | E66: Commensal | F66: + | G66: +
B67: Citrobacter Clade A (Citrobacter europaeus 97/99) | D67: Human | E67: Commensal | F67: + | G67: +
B68: Citrobacter Clade A (Citrobacter europaeus705SK3) | C68: Citrobacter freundii | D68: Environment | E68: Wastewater | F68: + | G68: +
B69: Citrobacter Clade A (Citrobacter europaeus A121) | D69: Human | E69: Commensal | F69: + | G69: +
B70: Citrobacter Clade A (Citrobacter europaeus BD) | C70: Citrobacter freundii | D70: Animal (insect) | E70: Commensal | F70: + | G70: +
B71: Citrobacter Clade A (Citrobacter europaeus CF_13_ST_93) | C71: Citrobacter freundii | D71: Human | E71: Clinical | F71: + | G71: +
B72: Citrobacter Clade A (Citrobacter europaeus CRCB-101) | C72: Citrobacter freundii | D72: Human | E72: Clinical | F72: + | G72: +
B73: Citrobacter Clade A (Citrobacter europaeus FDAARGOS_61) | C73: Citrobacter freundii | D73: Human | E73: Clinical | F73: + | G73: +
B74: Citrobacter Clade A (Citrobacter europaeus FDAARGOS_253) | C74: Citrobacter braakii | D74: Human | E74: Clinical | F74: + | G74: +
B75: Citrobacter Clade A (Citrobacter europaeus HH11) | C75: Citrobacter freundii | D75: Environment | E75: Biosolids | F75: + | G75: +
B76: Citrobacter Clade A (Citrobacter europaeus MGH 56) | C76: Citrobacter freundii | D76: Human | E76: Clinical | F76: + | G76: +
B77: Citrobacter Clade A (Citrobacter freundii 1-RC-17-03941) | D77: Human | E77: Clinical | F77: + | G77: - | H77: flag-2 deleted
B78: Citrobacter Clade A (Citrobacter freundii 5-172-05_S1_C1) | D78: Human | E78: Clinical | F78: + | G78: - | H78: flag-2 deleted
B79: Citrobacter Clade A (Citrobacter freundii 18-1) | D79: Environment | E79: River sediment | F79: + | G79: +
B80: Citrobacter Clade A (Citrobacter freundii 164) | D80: Human | E80: Clinical | F80: + | G80: - | H80: flag-2 deleted
B81: Citrobacter Clade A (Citrobacter freundii 236-17-2) | D81: Animal (canine) | E81: Commensal | F81: + | G81: +
B82: Citrobacter Clade A (Citrobacter freundii 537_CKOS) | D82: Human | E82: Clinical | F82: + | G82: +
B83: Citrobacter Clade A (Citrobacter freundii 538_CKOS) | D83: Human | E83: Clinical | F83: + | G83: +
B84: Citrobacter Clade A (Citrobacter freundii 554_CKOS) | D84: Human | E84: Clinical | F84: + | G84: +
B85: Citrobacter Clade A (Citrobacter freundii 804_CKOS) | D85: Human | E85: Clinical | F85: + | G85: +
B86: Citrobacter Clade A (Citrobacter freundii 873_CKOS) | D86: Human | E86: Clinical | F86: + | G86: +
B87: Citrobacter Clade A (Citrobacter freundii 874_CKOS) | D87: Human | E87: Clinical | F87: + | G87: +
B88: Citrobacter Clade A (Citrobacter freundii 2016WA-NCV) | D88: Human | E88: Clinical | F88: + | G88: - | H88: flag-2 deleted
B89: Citrobacter Clade A (Citrobacter freundii 2016WA-REV) | D89: Human | E89: Clinical | F89: + | G89: - | H89: flag-2 deleted
B90: Citrobacter Clade A (Citrobacter freundii 2016WA-SCV) | D90: Human | E90: Clinical | F90: + | G90: - | H90: flag-2 deleted
B91: Citrobacter Clade A (Citrobacter freundii 1019002) | D91: Human | E91: Clinical | F91: + | G91: - | H91: flag-2 deleted
B92: Citrobacter Clade A (Citrobacter freundii A1) | D92: Environment | E92: Freshwater | F92: + | G92: - | H92: flag-2 deleted
B93: Citrobacter Clade A (Citrobacter freundii ACFMW) | D93: N/A | E93: N/A | F93: + | G93: - | H93: flag-2 deleted
B94: Citrobacter Clade A (Citrobacter freundii AMA 948) | D94: Human | E94: Clinical | F94: + | G94: - | H94: flag-2 deleted
B95: Citrobacter Clade A (Citrobacter freundii AR_0022) | D95: Human | E95: Clinical | F95: + | G95: - | H95: flag-2 deleted
B96: Citrobacter Clade A (Citrobacter freundii AR_0116) | D96: Human | E96: Clinical | F96: + | G96: +
B97: Citrobacter Clade A (Citrobacter freundii ATCC 8090) | D97: Environment | E97: Freshwater | F97: + | G97: +
B98: Citrobacter Clade A (Citrobacter freundii B9-C2) | D98: Human | E98: Clinical | F98: + | G98: - | H98: flag-2 deleted
B99: Citrobacter Clade A (Citrobacter freundii BIDMC107) | D99: Human | E99: Clinical | F99: + | G99: - | H99: flag-2 deleted
B100: Citrobacter Clade A (Citrobacter freundii CAV1321) | D100: Human | E100: Clinical | F100: + | G100: - | H100: flag-2 deleted
B101: Citrobacter Clade A (Citrobacter freundii CAV1741) | D101: Human | E101: Clinical | F101: + | G101: - | H101: flag-2 deleted
B102: Citrobacter Clade A (Citrobacter freundii CAV1857) | D102: Environment | E102: Clinical | F102: + | G102: - | H102: flag-2 deleted
B103: Citrobacter Clade A (Citrobacter freundii CF003) | D103: Human | E103: Clinical | F103: + | G103: +
B104: Citrobacter Clade A (Citrobacter freundii CF004) | D104: Human | E104: Clinical | F104: + | G104: - | H104: flag-2 deleted
B105: Citrobacter Clade A (Citrobacter freundii CF6_ST18) | D105: Human | E105: Clinical | F105: + | G105: +
B106: Citrobacter Clade A (Citrobacter freundii CF7_ST91) | D106: Human | E106: Clinical | F106: + | G106: - | H106: flag-2 deleted
B107: Citrobacter Clade A (Citrobacter freundii CF8_ST22) | D107: Human | E107: Clinical | F107: + | G107: - | H107: flag-2 deleted
B108: Citrobacter Clade A (Citrobacter freundii CF_11_ST_64) | D108: Human | E108: Clinical | F108: + | G108: - | H108: flag-2 deleted
B109: Citrobacter Clade A (Citrobacter freundii CF_12_ST_92) | D109: Human | E109: Clinical | F109: + | G109: - | H109: flag-2 deleted
B110: Citrobacter Clade A (Citrobacter freundii CF_14_ST_18) | D110: Human | E110: Clinical | F110: + | G110: +
B111: Citrobacter Clade A (Citrobacter freundii CF_15_ST_94) | D111: Human | E111: Clinical | F111: + | G111: +
B112: Citrobacter Clade A (Citrobacter freundii CRE20) | D112: Human | E112: Clinical | F112: + | G112: +
B113: Citrobacter Clade A (Citrobacter freundii CWH001) | D113: Human | E113: Clinical | F113: + | G113: - | H113: flag-2 deleted
B114: Citrobacter Clade A (Citrobacter freundii D36-1) | D114: Animal (porcine) | E114: Commensal | F114: + | G114: +
B115: Citrobacter Clade A (Citrobacter freundii DPB_2) | D115: Environment | E115: River sediment | F115: + | G115: - | H115: flag-2 deleted
B116: Citrobacter Clade A (Citrobacter freundii E2614) | D116: Human | E116: Clinical | F116: + | G116: - | H116: flag-2 deleted
B117: Citrobacter Clade A (Citrobacter freundii FDAARGOS_73) | D117: Human | E117: Clinical | F117: + | G117: - | H117: flag-2 deleted
B118: Citrobacter Clade A (Citrobacter freundii FDAARGOS_549) | D118: Human | E118: Clinical | F118: + | G118: - | H118: flag-2 deleted
B119: Citrobacter Clade A (Citrobacter freundii GED7749C) | D119: Human | E119: Clinical | F119: + | G119: +
B120: Citrobacter Clade A (Citrobacter freundii GTC 09479) | D120: Human | E120: Clinical | F120: + | G120: +
B121: Citrobacter Clade A (Citrobacter freundii GTC 09629) | D121: Human | E121: Clinical | F121: + | G121: - | H121: flag-2 deleted
B122: Citrobacter Clade A (Citrobacter freundii HM38) | D122: Human | E122: Clinical | F122: + | G122: +
B123: Citrobacter Clade A (Citrobacter freundii MGH141) | D123: Human | E123: N/A | F123: + | G123: +
B124: Citrobacter Clade A (Citrobacter freundii MGH142) | D124: Human | E124: Clinical | F124: + | G124: +
B125: Citrobacter Clade A (Citrobacter freundii MGH145) | D125: Human | E125: N/A | F125: + | G125: - | H125: flag-2 deleted
B126: Citrobacter Clade A (Citrobacter freundii MH17-012N) | D126: Human | E126: Clinical | F126: + | G126: - | H126: flag-2 deleted
B127: Citrobacter Clade A (Citrobacter freundii MRSN 11938) | D127: Human | E127: Clinical | F127: + | G127: - | H127: flag-2 deleted
B128: Citrobacter Clade A (Citrobacter freundii R17) | D128: Environment | E128: Wastewater | F128: + | G128: +
B129: Citrobacter Clade A (Citrobacter freundii R47) | D129: Animal (murine) | E129: Commensal | F129: + | G129: +
B130: Citrobacter Clade A (Citrobacter freundii RLS1) | D130: Human | E130: Clinical | F130: + | G130: +
B131: Citrobacter Clade A (Citrobacter freundii RU2) | D131: Human | E131: Clinical | F131: + | G131: +
B132: Citrobacter Clade A (Citrobacter freundii SA79) | D132: Human | E132: Clinical | F132: + | G132: +
B133: Citrobacter Clade A (Citrobacter freundii SL151) | D133: Human | E133: Clinical | F133: + | G133: +
B134: Citrobacter Clade A (Citrobacter freundii ST1) | D134: Animal (dinoflagellate) | E134: Commensal | F134: + | G134: +
B135: Citrobacter Clade A (Citrobacter freundii ST2) | D135: Animal (dinoflagellate) | E135: Commensal | F135: + | G135: +
B136: Citrobacter Clade A (Citrobacter freundii ST62:944112508) | D136: Human | E136: Clinical | F136: + | G136: - | H136: flag-2 deleted
B137: Citrobacter Clade A (Citrobacter freundii TUM1507) | D137: Human | E137: Clinical | F137: + | G137: +
B138: Citrobacter Clade A (Citrobacter freundii U2785) | D138: Human | E138: Clinical | F138: + | G138: +
B139: Citrobacter Clade A (Citrobacter freundii UCI 31) | D139: Human | E139: Clinical | F139: + | G139: - | H139: flag-2 deleted
B140: Citrobacter Clade A (Citrobacter freundii UMH13) | D140: Human | E140: Clinical | F140: + | G140: - | H140: flag-2 deleted
B141: Citrobacter Clade A (Citrobacter freundii UMH14) | D141: Human | E141: Clinical | F141: + | G141: - | H141: flag-2 deleted
B142: Citrobacter Clade A (Citrobacter freundii UMH16) | D142: Human | E142: Clinical | F142: + | G142: +
B143: Citrobacter Clade A (Citrobacter freundii WUSM_CF_61) | D143: Human | E143: Clinical | F143: + | G143: - | H143: flag-2 deleted
B144: Citrobacter Clade A (Citrobacter freundii YDC692-2) | D144: Human | E144: Clinical | F144: + | G144: - | H144: flag-2 deleted
B145: Citrobacter Clade A (Citrobacter gillenii FDAARGOS_364) | C145: Citrobacter werkmanii | D145: Human | E145: Clinical | F145: + | G145: - | H145: flag-2 deleted
B146: Citrobacter Clade A (Citrobacter gillenii MBT-C3) | D146: Environment | E146: Food (plant produce) | F146: + | G146: +
B147: Citrobacter Clade A (Citrobacter gillenii NCTC12125) | C147: Kluyvera intermedia | D147: Environment | E147: Freshwater | F147: + | G147: +
B148: Citrobacter Clade A (Citrobacter gillenii Upstream_1) | C148: Citrobacter freundii | D148: Environment | E148: River sediment | F148: + | G148: +
B149: Citrobacter Clade A (Citrobacter murliniae P080C CL) | D149: Human | E149: Commensal | F149: + | G149: - | H149: flag-2 deleted
B150: Citrobacter Clade A (Citrobacter pasteurii CIP 55.13) | D150: Human | E150: Clinical | F150: + | G150: - | H150: flag-2 deleted
B151: Citrobacter Clade A (Citrobacter pasteurii CRE89) | C151: Citrobacter freundii | D151: Human | E151: Clinical | F151: + | G151: - | H151: flag-2 deleted
B152: Citrobacter Clade A (Citrobacter pasteurii MGH152) | C152: Citrobacter freundii | D152: Human | E152: Clinical | F152: + | G152: - | H152: flag-2 deleted
B153: Citrobacter Clade A (Citrobacter pasteurii NCTC13708) | C153: Citrobacter youngae | D153: Human | E153: Commensal | F153: + | G153: +
B154: Citrobacter Clade A (Citrobacter pasteurii NCTC13709) | C154: Citrobacter youngae | D154: Environment | E154: Food (animal produce) | F154: + | G154: +
B155: Citrobacter Clade A (Citrobacter pasteurii UMH17) | D155: Human | E155: Clinical | F155: + | G155: - | H155: flag-2 deleted
B156: Citrobacter Clade A (Citrobacter pasteurii YDC691) | C156: Citrobacter freundii | D156: Human | E156: Clinical | F156: + | G156: - | H156: flag-2 deleted
B157: Citrobacter Clade A (Citrobacter portucalensis 4_7_47CFAA) | C157: Citrobacter freundii | D157: Human | E157: Commensal | F157: + | G157: -
B158: Citrobacter Clade A (Citrobacter portucalensis 30_2) | D158: Human | E158: Commensal | F158: + | G158: -
B159: Citrobacter Clade A (Citrobacter portucalensis 953086287) | C159: Citrobacter freundii | D159: Human | E159: Clinical | F159: + | G159: -
B160: Citrobacter Clade A (Citrobacter portucalensis A60) | D160: Environment | E160: Freshwater | F160: + | G160: -
B161: Citrobacter Clade A (Citrobacter portucalensis AM17-37) | D161: Human | E161: Commensal | F161: + | G161: -
B162: Citrobacter Clade A (Citrobacter portucalensis CF_324) | C162: Citrobacter freundii | D162: Environment | E162: Hospital-associated | F162: + | G162: -
B163: Citrobacter Clade A (Citrobacter portucalensis CF1_ST89) | C163: Citrobacter freundii | D163: Human | E163: Clinical | F163: + | G163: -
B164: Citrobacter Clade A (Citrobacter portucalensis CF4_ST90) | C164: Citrobacter freundii | D164: Human | E164: Clinical | F164: + | G164: -
B165: Citrobacter Clade A (Citrobacter portucalensis CQ-CP1) | D165: Animal (reptile) | E165: Commensal | F165: + | G165: -
B166: Citrobacter Clade A (Citrobacter portucalensis Effluent_1) | D166: Environment | E166: Wastewater | F166: + | G166: -
B167: Citrobacter Clade A (Citrobacter portucalensis L6) | C167: Citrobacter youngae | D167: Human | E167: Commensal | F167: + | G167: -
B168: Citrobacter Clade A (Citrobacter portucalensis MBTC-1222) | D168: Environment | E168: Food (plant produce) | F168: + | G168: -
B169: Citrobacter Clade A (Citrobacter portucalensis NR-12) | D169: Animal (avian) | E169: Commensal | F169: + | G169: -
B170: Citrobacter Clade A (Citrobacter portucalensis P10159) | C170: Citrobacter freundii | D170: Human | E170: Clinical | F170: + | G170: -
B171: Citrobacter Clade A (Citrobacter portucalensis ST63:944526466) | C171: Citrobacter freundii | D171: Human | E171: Clinical | F171: + | G171: -
B172: Citrobacter Clade A (Citrobacter portucalensis UCI 32) | C172: Citrobacter freundii | D172: Human | E172: Clinical | F172: + | G172: -
B173: Citrobacter Clade A (Citrobacter sp. nov. 1 S1284) | C173: Citrobacter freundii | D173: Environment | E173: Food (plant produce) | F173: + | G173: +
B174: Citrobacter Clade A (Citrobacter sp. nov. 2 MGH146) | C174: Citrobacter freundii | D174: Human | E174: N/A | F174: + | G174: +
B175: Citrobacter Clade A (Citrobacter sp. nov. 3 CF10_ST11) | C175: Citrobacter freundii | D175: Human | E175: Clinical | F175: + | G175: +
B176: Citrobacter Clade A (Citrobacter sp. nov 3 UMH19) | C176: Citrobacter freundii | D176: Human | E176: Clinical | F176: + | G176: +
B177: Citrobacter Clade A (Citrobacter sp. nov 4 B38) | C177: Citrobacter freundii | D177: Human | E177: Clinical | F177: + | G177: +
B178: Citrobacter Clade A (Citrobacter sp. nov. 4 C191) | C178: Citrobacter freundii | D178: Environment | E178: River sediment | F178: + | G178: +
B179: Citrobacter Clade A (Citrobacter sp. nov. 5 AMA 754) | C179: Citrobacter freundii | D179: Human | E179: Clinical | F179: + | G179: +
B180: Citrobacter Clade A (Citrobacter sp. nov 5 MRSN 12115) | C180: Citrobacter freundii | D180: Human | E180: Clinical | F180: + | G180: +
B181: Citrobacter Clade A (Citrobacter sp. nov 5 NCTC9750) | C181: Citrobacter freundii | D181: Human | E181: Clinical | F181: + | G181: +
B182: Citrobacter Clade A (Citrobacter werkmanii BF-6) | D182: Environment | E182: Wastewater | F182: + | G182: +
B183: Citrobacter Clade A (Citrobacter werkmanii FDAARGOS_550) | C183: Citrobacter freundii | D183: Human | E183: Clinical | F183: + | G183: +
B184: Citrobacter Clade A (Citrobacter werkmanii NBRC 105721) | D184: Human | E184: Clinical | F184: + | G184: +
B185: Citrobacter Clade A (Citrobacter werkmanii UMH15) | C185: Citrobacter freundii | D185: Human | E185: Clinical | F185: + | G185: +
B186: Citrobacter Clade A (Citrobacter youngae AK-8) | C186: Citrobacter werkmanii | D186: Human | E186: Clinical | F186: + | G186: +
B187: Citrobacter Clade A (Citrobacter youngae ATCC 29220) | D187: Human | E187: Commensal | F187: + | G187: +
B188: Citrobacter Clade A (Citrobacter youngae CFNIH1) | C188: Citrobacter freundii | D188: Human | E188: Commensal | F188: + | G188: +
B189: Citrobacter Clade A (Citrobacter youngae CRK0001) | C189: Citrobacter werkmanii | D189: Human | E189: Clinical | F189: + | G189: +
B190: Citrobacter Clade A (Citrobacter youngae ICR003007) | C190: Citrobacter werkmanii | D190: Human | E190: Clinical | F190: + | G190: +
B191: Citrobacter Clade A (Citrobacter youngae UMH18) | C191: Citrobacter werkmanii | D191: Human | E191: Clinical | F191: + | G191: +
B192: Citrobacter Clade B (Citrobacter amalonaticus 3e8A) | D192: Human | E192: Clinical | F192: + | G192: - | H192: flag-2 deleted
B193: Citrobacter Clade B (Citrobacter amalonaticus 3e8B) | D193: Human | E193: Clinical | F193: + | G193: - | H193: flag-2 deleted
B194: Citrobacter Clade B (Citrobacter amalonaticus 133355-SW-C4-Cam) | D194: Human | E194: Clinical | F194: + | G194: - | H194: flag-2 deleted
B195: Citrobacter Clade B (Citrobacter amalonaticus ca_0067) | D195: Human | E195: Clinical | F195: + | G195: - | H195: flag-2 deleted
B196: Citrobacter Clade B (Citrobacter amalonaticus FDAARGOS_122) | D196: Human | E196: Clinical | F196: + | G196: -
B197: Citrobacter Clade B (Citrobacter amalonaticus FDAARGOS_165) | D197: Human | E197: Clinical | F197: + | G197: - | H197: flag-2 deleted
B198: Citrobacter Clade B (Citrobacter amalonaticus FDAARGOS_166) | D198: Human | E198: Clinical | F198: + | G198: - | H198: flag-2 deleted
B199: Citrobacter Clade B (Citrobacter amalonaticus FDAARGOS_490) | D199: Human | E199: Clinical | F199: + | G199: - | H199: flag-2 deleted
B200: Citrobacter Clade B (Citrobacter amalonaticus L8A) | D200: Human | E200: Clinical | F200: + | G200: - | H200: flag-2 deleted
B201: Citrobacter Clade B (Citrobacter amalonaticus MGH151) | D201: Human | E201: Clinical | F201: + | G201: - | H201: flag-2 deleted
... 3838 more rows

Sheet Supplementary Table S2
B1: Strain | C1: Nucleotide NCBI Acc # | D1: Size | E1: # proteins | F1: flag-2 locus | G1: Genomic | H1: G+C% | I1: VR1 size | J1: VR1 | K1: VR1 | L1: VR1 G+C % deviation | M1: VR2 size | N1: VR2 | O1: VR2 | P1: VR2 G+C % deviation | Q1: Notes
D2: (kb) | E2: encoded | F2: G+C% | G2: G+C% | H2: deviation | I2: (kb) | J2: # proteins | K2: G+C% | L2: (from genome) | M2: (kb) | N2: # proteins | O2: G+C% | P2: (from genome)
A3: Budviciaceae
B4: Budvicia aquatica DSM 5075 | C4: ATYS01000002 | D4: 41.7 | E4: 46 | F4: 46.0 | G4: 45.7 | H4: =F4-G4 -> 0.3 | I4: 3.5 | J4: 4 | K4: 44.8 | L4: =K4-G4 -> -0.9 | M4: 0.6 | N4: 1 | O4: 42.2 | P4: =O4-G4 -> -3.5 | Q4: 3 copies of lafA
B5: Budvicia aquatica FDAARGOS_387 | C5: PDDX01000001 | D5: 41.7 | E5: 46 | F5: 46.0 | G5: 45.9 | H5: 0.1 | I5: 3.5 | J5: 4 | K5: 44.8 | L5: -1.1 | M5: 0.6 | N5: 1 | O5: 42.2 | P5: -3.7 | Q5: 3 copies of lafA
B6: Leminorella grimontii ATCC 33999 | C6: JMPN01000025 | D6: 40.1 | E6: 45 | F6: 56.3 | G6: 53.9 | H6: 2.4 | I6: 4.5 | J6: 3 | K6: 56.6 | L6: 2.7 | M6: 1.1 | N6: 2 | O6: 52.7 | P6: -1.2
B7: Pragia fontium 24613 | C7: CP010423 | D7: 48.1 | E7: 50 | F7: 45.2 | G7: 45.4 | H7: -0.2 | I7: 5.8 | J7: 5 | K7: 41.9 | L7: -3.5 | M7: 0.9 | N7: 1 | O7: 41.5 | P7: -3.9 | Q7: Contains additional variable region between lafZ and lafA; 2 copies of lafA
B8: Pragia fontium DSM 5563 | C8: FOLW01000001 | D8: 48.1 | E8: 50 | F8: 45.3 | G8: 45.3 | H8: 0.0 | I8: 5.8 | J8: 5 | K8: 42.0 | L8: -3.3 | M8: 0.9 | N8: 1 | O8: 42.0 | P8: -3.3 | Q8: Contains additional variable region between lafZ and lafA; 2 copies of lafA
B9: Pragia fontium NCTC12284 | C9: LR134531 | D9: 48.1 | E9: 50 | F9: 45.3 | G9: 45.3 | H9: 0.0 | I9: 5.8 | J9: 5 | K9: 41.9 | L9: -3.4 | M9: 0.9 | N9: 1 | O9: 42.0 | P9: -3.3 | Q9: Contains additional variable region between lafZ and lafA; 2 copies of lafA
B10: Pragia fontium NCTC12285 | C10: UGTK01000001 | D10: 48.1 | E10: 50 | F10: 45.3 | G10: 45.4 | H10: -0.1 | I10: 5.8 | J10: 5 | K10: 42.0 | L10: -3.4 | M10: 0.9 | N10: 1 | O10: 41.7 | P10: -3.7 | Q10: Contains additional variable region between lafZ and lafA; 2 copies of lafA
A12: Enterobacteriaceae
B13: Buttiauxella noackiae ATCC 51607 | C13: LXEO01000037/038 | D13: 45.2 | E13: 48 | F13: 46.8 | G13: 49.5 | H13: =F13-G13 -> -2.7 | I13: 11.0 | J13: 8 | K13: 39.8 | L13: =K13-G13 -> -9.7 | M13: 0.4 | N13: 1 | O13: 46.0 | P13: =O13-G13 -> -3.5
B14: Buttiauxella noackiae MCE | C14: JPRU01000002 | D14: 34.5 | E14: 40 | F14: 49.2 | G14: 49.3 | H14: -0.1 | I14: - | J14: - | K14: - | L14: - | M14: 0.4 | N14: 1 | O14: 46.0 | P14: -3.3
B15: Buttiauxella warmboldiae CCUG 35512 | C15: RPOH01000019 | D15: 43.2 | E15: 47 | F15: 49.8 | G15: 52.4 | H15: -2.6 | I15: 9.2 | J15: 7 | K15: 37.3 | L15: =K15-G15 -> -15.1 | M15: 0.4 | N15: 1 | O15: 47.4 | P15: -5.0
B16: Cedecea davisae DSM 4568 | C16: KE161030 | D16: 43.1 | E16: 48 | F16: 55.3 | G16: 54.3 | H16: 1.0 | I16: 7.8 | J16: 7 | K16: 54.3 | L16: -0.0 | M16: 0.7 | N16: 1 | O16: 55.3 | P16: 1.0 | Q16: 2 copies of lafA
B17: Cedecea michiganensis RC10 | C17: CP011077 | D17: 37.6 | E17: 43 | F17: 55.8 | G17: 54.9 | H17: 0.9 | I17: 1.5 | J17: 1 | K17: 55.2 | L17: 0.3 | M17: 0.7 | N17: 1 | O17: 52.4 | P17: -2.6 | Q17: 2 copies of lafA
B18: Cedecea neteri ATCC 33855 | C18: BCTL01000040/059 | D18: 38.3 | E18: 45 | F18: 54.4 | G18: 54.1 | H18: 0.3 | I18: 2.5 | J18: 2 | K18: 55.3 | L18: 1.2 | M18: 1.6 | N18: 3 | O18: 42.6 | P18: -11.5 | Q18: 2 copies of lafA
B19: Cedecea neteri FDAARGOS_392 | C19: CP023525 | D19: 38.3 | E19: 45 | F19: 54.4 | G19: 54.2 | H19: 0.2 | I19: 2.5 | J19: 2 | K19: 55.3 | L19: 1.1 | M19: 1.6 | N19: 3 | O19: 42.6 | P19: -11.6 | Q19: 2 copies of lafA
B20: Cedecea sp. nov 1 M006 | C20: CP009458 | D20: 42.1 | E20: 48 | F20: 53.3 | G20: 54.4 | H20: -1.1 | I20: 5.5 | J20: 5 | K20: 49.0 | L20: -5.4 | M20: 2.1 | N20: 3 | O20: 45.1 | P20: -9.3 | Q20: 2 copies of lafA
B21: Cedecea sp. nov 3 SSMD04 | C21: CP009451 | D21: 45.7 | E21: 51 | F21: 55.3 | G21: 55.1 | H21: 0.2 | I21: 9.9 | J21: 10 | K21: 45.1 | L21: -10.0 | M21: 1.2 | N21: 1 | O21: 55.1 | P21: 0.0 | Q21: 2 copies of lafA
B22: Citrobacter Clade A (Citrobacter braakii 980_SSON) | C22: JULD01000007 | D22: 43.0 | E22: 47 | F22: 50.5 | G22: 52.3 | H22: =F22-G22 -> -1.8 | I22: 8.4 | J22: 7 | K22: 43.9 | L22: =K22-G22 -> -8.4 | M22: 0.5 | N22: 1 | O22: 42.2 | P22: =O22-G22 -> -10.1
B23: Citrobacter Clade A (Citrobacter braakii 989_CKOS) | C23: JUKU01000067 | D23: 43.0 | E23: 47 | F23: 50.5 | G23: 52.2 | H23: -1.7 | I23: 8.4 | J23: 7 | K23: 43.9 | L23: -8.3 | M23: 0.5 | N23: 1 | O23: 42.2 | P23: -10.0
B24: Citrobacter Clade A (Citrobacter braakii 1175_SENT) | C24: JWAG01000011 | D24: 43.4 | E24: 46 | F24: 51.3 | G24: 52.2 | H24: -0.9 | I24: 8.8 | J24: 7 | K24: 48.1 | L24: -4.1 | M24: 0.5 | N24: 1 | O24: 41.9 | P24: -10.3
B25: Citrobacter Clade A (Citrobacter braakii A47) | C25: KV744703 | D25: 42.1 | E25: 45 | F25: 51.0 | G25: 52.0 | H25: -1.0 | I25: 7.5 | J25: 5 | K25: 45.7 | L25: -6.3 | M25: 0.5 | N25: 1 | O25: 43.1 | P25: -8.9
B26: Citrobacter Clade A (Citrobacter braakii ATCC 51113) | C26: NAEW01000012 | D26: 43.4 | E26: 47 | F26: 51.3 | G26: 51.9 | H26: -0.6 | I26: 8.8 | J26: 7 | K26: 48.1 | L26: -3.8 | M26: 0.5 | N26: 1 | O26: 43.1 | P26: -8.8
B27: Citrobacter Clade A (Citrobacter braakii C1710) | C27: NEFN01000013/056 | D27: 42.1 | E27: 45 | F27: 50.9 | G27: 51.7 | H27: -0.8 | I27: 7.5 | J27: 5 | K27: 45.6 | L27: -6.1 | M27: 0.5 | N27: 1 | O27: 42.2 | P27: -9.5
B28: Citrobacter Clade A (Citrobacter braakii D8) | C28: FWDQ01000008 | D28: 42.1 | E28: 45 | F28: 51.0 | G28: 51.8 | H28: -0.8 | I28: 7.5 | J28: 5 | K28: 45.7 | L28: -6.1 | M28: 0.5 | N28: 1 | O28: 42.6 | P28: -9.2
B29: Citrobacter Clade A (Citrobacter braakii GN02600) | C29: LEDM01000001 | D29: 42.1 | E29: 45 | F29: 51.0 | G29: 51.7 | H29: -0.7 | I29: 7.5 | J29: 5 | K29: 45.7 | L29: -6.0 | M29: 0.5 | N29: 1 | O29: 42.9 | P29: -8.8
B30: Citrobacter Clade A (Citrobacter braakii GTA-817-RBA-P2) | C30: LAMY01000067 | D30: 42.1 | E30: 45 | F30: 51.0 | G30: 52.2 | H30: -1.2 | I30: 7.5 | J30: 5 | K30: 45.7 | L30: -6.5 | M30: 0.5 | N30: 1 | O30: 43.1 | P30: -9.2
B31: Citrobacter Clade A (Citrobacter braakii GTA-CB01) | C31: JRHK01000001 | D31: 43.4 | E31: 46 | F31: 51.3 | G31: 51.9 | H31: -0.6 | I31: 8.8 | J31: 7 | K31: 48.1 | L31: -3.8 | M31: - | N31: - | O31: - | P31: -
B32: Citrobacter Clade A (Citrobacter braakii HH5) | C32: SJSJ01000016 | D32: 43.0 | E32: 47 | F32: 50.6 | G32: 52.0 | H32: -1.4 | I32: 8.4 | J32: 7 | K32: 43.9 | L32: -8.1 | M32: 0.5 | N32: 1 | O32: 43.1 | P32: =O32-G32 -> -8.9
B33: Citrobacter Clade A (Citrobacter braakii HH6) | C33: SJSI01000027 | D33: 43.4 | E33: 47 | F33: 51.4 | G33: 51.9 | H33: -0.5 | I33: 8.8 | J33: 7 | K33: 48.1 | L33: -3.8 | M33: 0.5 | N33: 1 | O33: 42.8 | P33: -9.1
B34: Citrobacter Clade A (Citrobacter braakii HH8) | C34: SJSG01000039 | D34: 43.0 | E34: 47 | F34: 50.6 | G34: 51.9 | H34: -1.3 | I34: 8.4 | J34: 7 | K34: 44.0 | L34: -7.9 | M34: 0.5 | N34: 1 | O34: 42.2 | P34: -9.7
B35: Citrobacter Clade A (Citrobacter braakii HH9) | C35: SJSF01000019 | D35: 42.1 | E35: 45 | F35: 51.0 | G35: 52.1 | H35: -1.1 | I35: 7.5 | J35: 5 | K35: 45.5 | L35: -6.6 | M35: 0.5 | N35: 1 | O35: 42.8 | P35: -9.3
B36: Citrobacter Clade A (Citrobacter braakii HH10) | C36: SJSE01000030/031 | D36: 40.0 | E36: 44 | F36: 51.6 | G36: 52.1 | H36: -0.5 | I36: 5.4 | J36: 4 | K36: 48.0 | L36: -4.1 | M36: 0.5 | N36: 1 | O36: 42.4 | P36: -9.7
B37: Citrobacter Clade A (Citrobacter braakii S649) | C37: PQMC01000001 | D37: 43.4 | E37: 47 | F37: 51.3 | G37: 52.0 | H37: -0.7 | I37: 8.8 | J37: 7 | K37: 48.1 | L37: -3.9 | M37: 0.5 | N37: 1 | O37: 42.8 | P37: -9.2
B38: Citrobacter Clade A (Citrobacter braakii S1278) | C38: PQLW01000001 | D38: 43.4 | E38: 47 | F38: 51.3 | G38: 52.1 | H38: -0.8 | I38: 8.8 | J38: 7 | K38: 48.1 | L38: -4.0 | M38: 0.5 | N38: 1 | O38: 42.8 | P38: -9.3
B39: Citrobacter Clade A (Citrobacter braakii S1279) | C39: PQLV01000001 | D39: 43.4 | E39: 47 | F39: 51.3 | G39: 52.1 | H39: -0.8 | I39: 8.8 | J39: 7 | K39: 48.1 | L39: -4.0 | M39: 0.5 | N39: 1 | O39: 42.8 | P39: -9.3
B40: Citrobacter Clade A (Citrobacter braakii S1280) | C40: PQLU01000001 | D40: 43.4 | E40: 47 | F40: 51.3 | G40: 52.1 | H40: -0.8 | I40: 8.8 | J40: 7 | K40: 48.1 | L40: -4.0 | M40: 0.5 | N40: 1 | O40: 42.8 | P40: -9.3
B41: Citrobacter Clade A (Citrobacter braakii S1281) | C41: PQLT01000001 | D41: 43.4 | E41: 47 | F41: 51.3 | G41: 52.1 | H41: -0.8 | I41: 8.8 | J41: 7 | K41: 48.1 | L41: -4.0 | M41: 0.5 | N41: 1 | O41: 42.8 | P41: -9.3
B42: Citrobacter Clade A (Citrobacter braakii S1282) | C42: PQLS01000001 | D42: 43.4 | E42: 47 | F42: 51.3 | G42: 52.1 | H42: -0.8 | I42: 8.8 | J42: 7 | K42: 48.1 | L42: -4.0 | M42: 0.5 | N42: 1 | O42: 42.8 | P42: -9.3
B43: Citrobacter Clade A (Citrobacter braakii S1283) | C43: PQLR01000001 | D43: 43.4 | E43: 47 | F43: 51.3 | G43: 52.1 | H43: -0.8 | I43: 8.8 | J43: 7 | K43: 48.1 | L43: -4.0 | M43: 0.5 | N43: 1 | O43: 42.8 | P43: -9.3
B44: Citrobacter Clade A (Citrobacter braakii SCC4) | C44: MTCP01000001 | D44: 43.0 | E44: 47 | F44: 50.6 | G44: 51.7 | H44: -1.1 | I44: 8.4 | J44: 7 | K44: 44.0 | L44: -7.7 | M44: 0.5 | N44: 1 | O44: 42.2 | P44: -9.5
B45: Citrobacter Clade A (Citrobacter braakii WCHCF65) | C45: LIDR01000030/039/074 | D45: 41.8 | E45: 46 | F45: 51.4 | G45: 51.9 | H45: -0.5 | I45: 6.4 | J45: 5 | K45: 46.9 | L45: -5.0 | M45: 0.5 | N45: 1 | O45: 42.7 | P45: -9.2 | Q45: lfiF reading frame disrupted by transposase insertion
B46: Citrobacter Clade A (Citrobacter europaeus 67A) | C46: FLYB01000032 | D46: 43.0 | E46: 47 | F46: 50.9 | G46: 51.8 | H46: -0.9 | I46: 8.4 | J46: 7 | K46: 44.0 | L46: -7.8 | M46: 0.5 | N46: 1 | O46: 42.8 | P46: -9.0
B47: Citrobacter Clade A (Citrobacter europaeus 97/99) | C47: FLUX01000044 | D47: 43.0 | E47: 47 | F47: 50.9 | G47: 51.9 | H47: -1.0 | I47: 8.4 | J47: 7 | K47: 44.1 | L47: -7.8 | M47: 0.5 | N47: 1 | O47: 42.6 | P47: -9.3
B48: Citrobacter Clade A (Citrobacter europaeus 705SK3) | C48: CP02215 | D48: 41.9 | E48: 46 | F48: 50.2 | G48: 51.8 | H48: -1.6 | I48: 7.4 | J48: 6 | K48: 43.6 | L48: -8.2 | M48: 0.5 | N48: 1 | O48: 42.1 | P48: -9.7
B49: Citrobacter Clade A (Citrobacter europaeus A121) | C49: PQSZ01000007 | D49: 43.4 | E49: 47 | F49: 51.8 | G49: 52.0 | H49: -0.2 | I49: 8.8 | J49: 7 | K49: 48.6 | L49: -3.4 | M49: 0.5 | N49: 1 | O49: 42.8 | P49: -9.2
B50: Citrobacter Clade A (Citrobacter europaeus BD) | C50: CP018810 | D50: 43.0 | E50: 47 | F50: 50.9 | G50: 52.1 | H50: -1.2 | I50: 8.4 | J50: 7 | K50: 44.0 | L50: -8.1 | M50: 0.5 | N50: 1 | O50: 42.8 | P50: -9.3
B51: Citrobacter Clade A (Citrobacter europaeus CF_13_ST_93) | C51: MDCY01000049/054 | D51: 45.2 | E51: 49 | F51: 50.3 | G51: 52.1 | H51: -1.8 | I51: 7.4 | J51: 6 | K51: 43.6 | L51: -8.5 | M51: 0.5 | N51: 1 | O51: 42.1 | P51: -10.0 | Q51: lfiM reading frame disrupted by transposase; Missing lfiN
B52: Citrobacter Clade A (Citrobacter europaeus CRCB-101) | C52: CP024819 | D52: 43.4 | E52: 46 | F52: 51.8 | G52: 52.1 | H52: -0.3 | I52: 8.8 | J52: 7 | K52: 48.7 | L52: -3.4 | M52: 0.5 | N52: 1 | O52: 42.2 | P52: -9.9
B53: Citrobacter Clade A (Citrobacter europaeus FDAARGOS_61) | C53: CP026045 | D53: 43.0 | E53: 47 | F53: 50.9 | G53: 51.8 | H53: -0.9 | I53: 8.4 | J53: 7 | K53: 44.0 | L53: -7.8 | M53: 0.5 | N53: 1 | O53: 42.8 | P53: -9.0
B54: Citrobacter Clade A (Citrobacter europaeus FDAARGOS_253) | C54: CP020448.2 | D54: 43.0 | E54: 47 | F54: 50.9 | G54: 52.0 | H54: =F54-G54 -> -1.1 | I54: 8.4 | J54: 7 | K54: 44.0 | L54: -8.0 | M54: 0.5 | N54: 1 | O54: 42.8 | P54: -9.2
B55: Citrobacter Clade A (Citrobacter europaeus HH11) | C55: SJSD01000042/043/043 | D55: 41.9 | E55: 45 | F55: 50.2 | G55: 51.5 | H55: -1.3 | I55: 7.4 | J55: 6 | K55: 43.6 | L55: -7.9 | M55: 0.5 | N55: 1 | O55: 42.1 | P55: -9.4
B56: Citrobacter Clade A (Citrobacter europaeus MGH56) | C56: KK736165 | D56: 44.6 | E56: 48 | F56: 51.8 | G56: 51.8 | H56: 0.0 | I56: 8.8 | J56: 7 | K56: 48.6 | L56: -3.2 | M56: 0.5 | N56: 1 | O56: 42.2 | P56: -9.6 | Q56: lafZ reading frame disrupted by transposase insertion
B57: Citrobacter Clade A (Citrobacter freundii 18-1) | C57: CP022273 | D57: 18.7 | E57: 20 | F57: 49.6 | G57: 51.6 | H57: -2.0 | I57: 3.2 | J57: 4 | K57: 42.1 | L57: -9.5 | M57: - | N57: - | O57: - | P57: - | Q57: Missing lfgNMABCDEFGHIJK-lafWZ; Replaced with transposase
B58: Citrobacter Clade A (Citrobacter freundii 236-17-2) | C58: PQFB01000001 | D58: 42.9 | E58: 47 | F58: 50.0 | G58: 51.6 | H58: -1.6 | I58: 8.4 | J58: 6 | K58: 43.7 | L58: -7.9 | M58: 0.5 | N58: 1 | O58: 41.8 | P58: =O58-G58 -> -9.8
B59: Citrobacter Clade A (Citrobacter freundii 537_CKOS) | C59: JVDD01000024 | D59: 38.8 | E59: 42 | F59: 50.4 | G59: 51.7 | H59: -1.3 | I59: 7.5 | J59: 5 | K59: 43.8 | L59: -7.9 | M59: 0.5 | N59: 1 | O59: 42.1 | P59: -9.6 | Q59: Missing lfiQPNM and partial lafK; Replaced with transposase
B60: Citrobacter Clade A (Citrobacter freundii 538_CKOS) | C60: JVDC01000057 | D60: 39.0 | E60: 42 | F60: 51.1 | G60: 51.7 | H60: -0.6 | I60: 6.8 | J60: 5 | K60: 44.8 | L60: -6.9 | M60: 0.5 | N60: 1 | O60: 42.1 | P60: -9.6 | Q60: Missing lfiQPNM and partial lafK; Replaced with transposase
B61: Citrobacter Clade A (Citrobacter freundii 554_CKOS) | C61: JVCJ01000048/067 | D61: 39.7 | E61: 42 | F61: 50.8 | G61: 51.8 | H61: -1.0 | I61: 6.5 | J61: 5 | K61: 42.7 | L61: -9.1 | M61: 0.5 | N61: 1 | O61: 42.1 | P61: -9.7 | Q61: Missing lfiQPNM and partial lafK; Replaced with transposase
B62: Citrobacter Clade A (Citrobacter freundii 804_CKOS) | C62: JUSE01000040 | D62: 42.1 | E62: 45 | F62: 50.3 | G62: 51.4 | H62: -1.1 | I62: 7.5 | J62: 5 | K62: 43.9 | L62: -7.5 | M62: 0.5 | N62: 1 | O62: 41.1 | P62: -10.3
B63: Citrobacter Clade A (Citrobacter freundii 873_CKOS) | C63: JUPU01000036/242/271 | D63: 42.1 | E63: 45 | F63: 50.2 | G63: 51.6 | H63: -1.4 | I63: 7.5 | J63: 5 | K63: 43.9 | L63: -7.7 | M63: 0.5 | N63: 1 | O63: 40.0 | P63: -11.6
B64: Citrobacter Clade A (Citrobacter freundii 874_CKOS) | C64: JUPT01000052 | D64: 42.1 | E64: 45 | F64: 50.2 | G64: 51.5 | H64: -1.3 | I64: 7.5 | J64: 5 | K64: 43.9 | L64: -7.6 | M64: 0.5 | N64: 1 | O64: 40.0 | P64: -11.5
B65: Citrobacter Clade A (Citrobacter freundii AR_0116) | C65: CP032184 | D65: 41.9 | E65: 46 | F65: 50.1 | G65: 51.7 | H65: -1.6 | I65: 7.4 | J65: 6 | K65: 43.5 | L65: -8.2 | M65: 0.5 | N65: 1 | O65: 42.1 | P65: -9.6
B66: Citrobacter Clade A (Citrobacter freundii ATCC 8090) | C66: JMTA01000009 | D66: 37.6 | E66: 39 | F66: 50.2 | G66: 51.7 | H66: -1.5 | I66: 7.5 | J66: 5 | K66: 44.0 | L66: -7.7 | M66: 0.5 | N66: 1 | O66: 42.1 | P66: -9.6 | Q66: Missing lafBCDEFS
B67: Citrobacter Clade A (Citrobacter freundii CF003) | C67: NXKE01000009 | D67: 41.9 | E67: 46 | F67: 50.2 | G67: 51.8 | H67: -1.6 | I67: 7.4 | J67: 6 | K67: 43.6 | L67: -8.2 | M67: 0.5 | N67: 1 | O67: 42.1 | P67: -9.7
B68: Citrobacter Clade A (Citrobacter freundii CF6_ST18) | C68: MCON01000066 | D68: 41.9 | E68: 46 | F68: 50.2 | G68: 51.6 | H68: -1.4 | I68: 7.4 | J68: 6 | K68: 43.6 | L68: -8.0 | M68: 0.5 | N68: 1 | O68: 42.1 | P68: -9.5
B69: Citrobacter Clade A (Citrobacter freundii CF_14_ST_18) | C69: DCZ01000063 | D69: 41.9 | E69: 46 | F69: 50.2 | G69: 51.6 | H69: -1.4 | I69: 7.4 | J69: 6 | K69: 43.6 | L69: -8.0 | M69: 0.5 | N69: 1 | O69: 42.1 | P69: -9.5
B70: Citrobacter Clade A (Citrobacter freundii CF_15_ST_94) | C70: MDDA01000096 | D70: 9.7 | E70: 11 | F70: 49.5 | G70: 51.7 | H70: -2.2 | I70: - | J70: - | K70: - | L70: - | M70: - | N70: - | O70: - | P70: - | Q70: Missing lfiGHIJKL-lafWZABCDEFST; Partial lfiF and lfiU
B71: Citrobacter Clade A (Citrobacter freundii CRE20) | C71: PXLE01000019 | D71: 41.9 | E71: 46 | F71: 50.1 | G71: 51.7 | H71: -1.6 | I71: 7.4 | J71: 6 | K71: 43.6 | L71: =K71-G71 -> -8.1 | M71: 0.5 | N71: 1 | O71: 42.1 | P71: =O71-G71 -> -9.6
B72: Citrobacter Clade A (Citrobacter freundii D36-1) | C72: NEFW0100000 | D72: 13.9 | E72: 16 | F72: 50.3 | G72: 51.5 | H72: -1.2 | I72: - | J72: - | K72: - | L72: - | M72: - | N72: - | O72: - | P72: - | Q72: Missing lfiHIJ-lfgNMABCDEFGHIJKL-lafWZ-lafFSTU
B73: Citrobacter Clade A (Citrobacter freundii GED7749C) | C73: KQ956031 | D73: 41.9 | E73: 46 | F73: 50.2 | G73: 51.7 | H73: -1.5 | I73: 7.4 | J73: 6 | K73: 43.8 | L73: =K73-G73 -> -7.9 | M73: 0.5 | N73: 1 | O73: 41.8 | P73: =O73-G73 -> -9.9
B74: Citrobacter Clade A (Citrobacter freundii GTC 09479) | C74: AOMS01000002 | D74: 42.1 | E74: 45 | F74: 50.3 | G74: 51.6 | H74: -1.3 | I74: 7.5 | J74: 5 | K74: 43.9 | L74: -7.7 | M74: 0.5 | N74: 1 | O74: 41.1 | P74: -10.5
B75: Citrobacter Clade A (Citrobacter freundii HM38) | C75: CP024672 | D75: 41.9 | E75: 46 | F75: 50.2 | G75: 51.7 | H75: -1.5 | I75: 7.4 | J75: 6 | K75: 43.8 | L75: -7.9 | M75: 0.5 | N75: 1 | O75: 41.8 | P75: -9.9
B76: Citrobacter Clade A (Citrobacter freundii MGH141) | C76: NGRB01000002 | D76: 41.9 | E76: 46 | F76: 50.1 | G76: 51.7 | H76: -1.6 | I76: 7.4 | J76: 6 | K76: 43.6 | L76: -8.1 | M76: 0.5 | N76: 1 | O76: 42.1 | P76: -9.6
B77: Citrobacter Clade A (Citrobacter freundii MGH142) | C77: NGRC01000001 | D77: 41.9 | E77: 46 | F77: 50.1 | G77: 51.8 | H77: -1.7 | I77: 7.4 | J77: 6 | K77: 43.6 | L77: -8.2 | M77: 0.5 | N77: 1 | O77: 42.1 | P77: -9.7
B78: Citrobacter Clade A (Citrobacter freundii R17) | C78: CP035276 | D78: 42.1 | E78: 45 | F78: 50.3 | G78: 51.6 | H78: -1.3 | I78: 7.5 | J78: 5 | K78: 44.0 | L78: -7.6 | M78: 0.5 | N78: 1 | O78: 42.1 | P78: -9.5
B79: Citrobacter Clade A (Citrobacter freundii R47) | C79: CP040698 | D79: 23.8 | E79: 24 | F79: 49.0 | G79: 51.5 | H79: -2.5 | I79: 7.5 | J79: 5 | K79: 44.1 | L79: -7.4 | M79: - | N79: - | O79: - | P79: - | Q79: Missing lfgABCDEFGHIJKL-lafWZABCDEF; Partial lfgM and lafS
B80: Citrobacter Clade A (Citrobacter freundii RLS1) | C80: JATT01000056 | D80: 37.6 | E80: 39 | F80: 50.2 | G80: 51.7 | H80: -1.5 | I80: 7.5 | J80: 5 | K80: 44.0 | L80: -7.7 | M80: 0.5 | N80: 1 | O80: 42.1 | P80: =O80-G80 -> -9.6 | Q80: Missing lafCDEFST; Partial lafB
B81: Citrobacter Clade A (Citrobacter freundii RU2) | C81: JRST01000001 | D81: 42.1 | E81: 45 | F81: 50.3 | G81: 51.5 | H81: -1.2 | I81: 7.5 | J81: 5 | K81: 43.9 | L81: -7.6 | M81: 0.5 | N81: 1 | O81: 40.0 | P81: -11.5
B82: Citrobacter Clade A (Citrobacter freundii SA79) | C82: LAZI01000001 | D82: 41.9 | E82: 46 | F82: 50.2 | G82: 51.7 | H82: -1.5 | I82: 7.4 | J82: 6 | K82: 43.6 | L82: -8.1 | M82: 0.5 | N82: 1 | O82: 42.1 | P82: -9.6
B83: Citrobacter Clade A (Citrobacter freundii SL151) | C83: CP016952 | D83: 41.9 | E83: 46 | F83: 50.2 | G83: 51.9 | H83: -1.7 | I83: 7.4 | J83: 6 | K83: 43.6 | L83: -8.3 | M83: 0.5 | N83: 1 | O83: 42.1 | P83: -9.8
B84: Citrobacter Clade A (Citrobacter freundii ST1) | C84: KQ464178 | D84: 41.9 | E84: 46 | F84: 50.2 | G84: 52.0 | H84: -1.8 | I84: 7.4 | J84: 6 | K84: 43.6 | L84: -8.4 | M84: 0.5 | N84: 1 | O84: 42.1 | P84: -9.9
B85: Citrobacter Clade A (Citrobacter freundii ST2) | C85: KQ475287 | D85: 41.9 | E85: 46 | F85: 50.2 | G85: 52.0 | H85: -1.8 | I85: 7.4 | J85: 6 | K85: 43.6 | L85: -8.4 | M85: 0.5 | N85: 1 | O85: 42.1 | P85: -9.9
B86: Citrobacter Clade A (Citrobacter freundii TUM1507) | C86: BGLH01000036 | D86: 9.7 | E86: 11 | F86: 49.5 | G86: 51.8 | H86: =F86-G86 -> -2.3 | I86: - | J86: - | K86: - | L86: - | M86: - | N86: - | O86: - | P86: - | Q86: Missing lfiGHIJ-lfgNMABCDEFGHIJKL-lafWZABCDEFST; Partial lfiE and lfiU
B87: Citrobacter Clade A (Citrobacter freundii U2785) | C87: LS992183 | D87: 41.9 | E87: 46 | F87: 50.1 | G87: 51.7 | H87: -1.6 | I87: 7.4 | J87: 6 | K87: 43.5 | L87: =K87-G87 -> -8.2 | M87: 0.5 | N87: 1 | O87: 41.8 | P87: =O87-G87 -> -9.9
B88: Citrobacter Clade A (Citrobacter freundii UMH16) | C88: CP024677 | D88: 41.9 | E88: 46 | F88: 50.1 | G88: 51.7 | H88: -1.6 | I88: 7.4 | J88: 6 | K88: 43.6 | L88: -8.1 | M88: 0.5 | N88: 1 | O88: 42.1 | P88: =O88-G88 -> -9.6
B89: Citrobacter Clade A (Citrobacter gillenii MBT-C3) | C89: QVEK01000002 | D89: 44.2 | E89: 48 | F89: 50.7 | G89: 52.5 | H89: -1.8 | I89: 9.6 | J89: 8 | K89: 44.8 | L89: -7.7 | M89: 0.5 | N89: 1 | O89: 43.7 | P89: =O89-G89 -> -8.8
B90: Citrobacter Clade A (Citrobacter gillenii NCTC12125) | C90: LR134138 | D90: 17.8 | E90: 17 | F90: 52.1 | G90: 52.6 | H90: -0.5 | I90: 4.4 | J90: 3 | K90: 47.0 | L90: -5.6 | M90: - | N90: - | O90: - | P90: - | Q90: Missing lfgNMABCDEFGHIJK-lafWZABCDEFSTU; Replaced with transposase
B91: Citrobacter Clade A (Citrobacter gillenii Upstream_1) | C91: CP038856 | D91: 42.3 | E91: 46 | F91: 51.3 | G91: 52.7 | H91: -1.4 | I91: 6.5 | J91: 6 | K91: 45.8 | L91: -6.9 | M91: 0.5 | N91: 1 | O91: 44.2 | P91: =O91-G91 -> -8.5
B92: Citrobacter Clade A (Citrobacter pasteuri NCTC13708) | C92: UFWE01000006 | D92: 43.0 | E92: 47 | F92: 50.5 | G92: 51.7 | H92: -1.2 | I92: 8.4 | J92: 7 | K92: 44.4 | L92: -7.3 | M92: 0.5 | N92: 1 | O92: 39.1 | P92: -12.6
B93: Citrobacter Clade A (Citrobacter pasteuri NCTC13709) | C93: LR134485 | D93: 42.3 | E93: 46 | F93: 50.7 | G93: 51.8 | H93: -1.1 | I93: 7.7 | J93: 6 | K93: 45.0 | L93: -6.8 | M93: 0.5 | N93: 1 | O93: 38.9 | P93: -12.9
B94: Citrobacter Clade A (Citrobacter sp. nov 1 S1284) | C94: PQLY01000009 | D94: 77.0 | E94: 91 | F94: 52.3 | G94: 51.9 | H94: 0.4 | I94: 42.3 | J94: 51 | K94: 52.5 | L94: 0.6 | M94: 0.5 | N94: 1 | O94: 41.7 | P94: -10.2 | Q94: Phage insertion within VR1
B95: Citrobacter Clade A (Citrobacter sp. nov 2 MGH146) | C95: NGRE01000001 | D95: 41.9 | E95: 46 | F95: 50.4 | G95: 51.7 | H95: -1.3 | I95: 7.4 | J95: 6 | K95: 44.3 | L95: -7.4 | M95: 0.5 | N95: 1 | O95: 40.8 | P95: -10.9
B96: Citrobacter Clade A (Citrobacter sp. nov 3 CF10_ST11) | C96: MCOQ01000088 | D96: 41.9 | E96: 46 | F96: 50.3 | G96: 52.0 | H96: -1.7 | I96: 7.3 | J96: 6 | K96: 44.3 | L96: -7.7 | M96: 0.5 | N96: 1 | O96: 40.9 | P96: -11.1
B97: Citrobacter Clade A (Citrobacter sp. nov 3 UMH19) | C97: CP024673 | D97: 41.9 | E97: 46 | F97: 50.3 | G97: 51.9 | H97: -1.6 | I97: 7.3 | J97: 6 | K97: 44.3 | L97: -7.6 | M97: 0.5 | N97: 1 | O97: 40.8 | P97: -11.1
B98: Citrobacter Clade A (Citrobacter sp. nov 4 B38) | C98: CP016762 | D98: 36.4 | E98: 39 | F98: 50.8 | G98: 51.5 | H98: -0.7 | I98: 7.5 | J98: 5 | K98: 44.0 | L98: -7.5 | M98: - | N98: - | O98: - | P98: - | Q98: Missing lafZABCDEF; Replaced with transposase
B99: Citrobacter Clade A (Citrobacter sp. nov 4 C191) | C99: NEFA01000042/062/085 | D99: 45.3 | E99: 49 | F99: 50.3 | G99: 51.6 | H99: -1.3 | I99: 10.0 | J99: 8 | K99: 45.3 | L99: -6.3 | M99: 0.5 | N99: 1 | O99: 40.0 | P99: =O99-G99 -> -11.6 | Q99: lafZ reading frame disrupted by transposase
B100: Citrobacter Clade A (Citrobacter sp. nov 5 AMA 754) | C100: LLJO01000004 | D100: 42.1 | E100: 45 | F100: 50.3 | G100: 51.5 | H100: -1.2 | I100: 7.5 | J100: 5 | K100: 44.1 | L100: -7.4 | M100: 0.5 | N100: 1 | O100: 42.1 | P100: -9.4
B101: Citrobacter Clade A (Citrobacter sp. nov 5 MRSN 12115) | C101: JYFZ02000001 | D101: 42.1 | E101: 45 | F101: 50.3 | G101: 51.5 | H101: -1.2 | I101: 7.5 | J101: 5 | K101: 44.1 | L101: -7.4 | M101: 0.5 | N101: 1 | O101: 42.2 | P101: -9.3
B102: Citrobacter Clade A (Citrobacter sp. nov 5 NCTC9750) | C102: LR134118 | D102: 37.6 | E102: 39 | F102: 50.2 | G102: 51.7 | H102: -1.5 | I102: 7.5 | J102: 5 | K102: 44.0 | L102: -7.7 | M102: 0.5 | N102: 1 | O102: 42.1 | P102: -9.6 | Q102: Missing lafCDEFST; Partial lafB and lafU
B103: Citrobacter Clade A (Citrobacter werkmanii BF-6) | C103: CP019986 | D103: 43.3 | E103: 47 | F103: 49.5 | G103: 51.8 | H103: -2.3 | I103: 8.8 | J103: 7 | K103: 41.2 | L103: -10.6 | M103: 0.5 | N103: 1 | O103: 40.6 | P103: -11.2
B104: Citrobacter Clade A (Citrobacter werkmanii FDAARGOS_550) | C104: CP033742 | D104: 42.1 | E104: 45 | F104: 50.3 | G104: 51.8 | H104: -1.5 | I104: 7.5 | J104: 5 | K104: 44.1 | L104: -7.7 | M104: 0.5 | N104: 1 | O104: 40.2 | P104: -11.6
B105: Citrobacter Clade A (Citrobacter werkmanii NBRC 105721) | C105: BBMW01000010 | D105: 43.3 | E105: 47 | F105: 49.5 | G105: 52.1 | H105: -2.6 | I105: 8.8 | J105: 7 | K105: 41.2 | L105: -10.9 | M105: 0.5 | N105: 1 | O105: 40.8 | P105: -11.3
B106: Citrobacter Clade A (Citrobacter werkmanii UMH15) | C106: CP024679 | D106: 42.1 | E106: 45 | F106: 50.3 | G106: 51.8 | H106: -1.5 | I106: 7.5 | J106: 5 | K106: 44.1 | L106: -7.7 | M106: 0.5 | N106: 1 | O106: 40.2 | P106: -11.6
B107: Citrobacter Clade A (Citrobacter youngae AK-8) | C107: NDXY01000008 | D107: 53.3 | E107: 55 | F107: 47.9 | G107: 51.9 | H107: -4.0 | I107: 18.7 | J107: 15 | K107: 40.9 | L107: -11.0 | M107: 0.5 | N107: 1 | O107: 42.4 | P107: -9.5
B108: Citrobacter Clade A (Citrobacter youngae ATCC 29220) | C108: GG730299 | D108: 42.2 | E108: 45 | F108: 51.5 | G108: 52.7 | H108: -1.2 | I108: 7.5 | J108: 5 | K108: 45.5 | L108: -7.2 | M108: 0.5 | N108: 1 | O108: 41.7 | P108: -11.0
B109: Citrobacter Clade A (Citrobacter youngae CFNIH1) | C109: CP007557 | D109: 43.4 | E109: 47 | F109: 50.8 | G109: 52.2 | H109: -1.4 | I109: 8.8 | J109: 7 | K109: 46.9 | L109: -5.3 | M109: 0.5 | N109: 1 | O109: 41.1 | P109: -11.1
B110: Citrobacter Clade A (Citrobacter youngae CRK0001) | C110: NEYS02000016 | D110: 43.4 | E110: 48 | F110: 50.6 | G110: 52.0 | H110: -1.4 | I110: 8.8 | J110: 7 | K110: 46.8 | L110: -5.2 | M110: 0.5 | N110: 1 | O110: 41.1 | P110: -10.9
B111: Citrobacter Clade A (Citrobacter youngae ICR003007) | C111: SEJH01000019 | D111: 43.4 | E111: 47 | F111: 50.8 | G111: 52.2 | H111: -1.4 | I111: 8.8 | J111: 7 | K111: 46.9 | L111: -5.3 | M111: 0.5 | N111: 1 | O111: 41.1 | P111: -11.1
B112: Citrobacter Clade A (Citrobacter youngae UMH18) | C112: CP024675 | D112: 43.4 | E112: 47 | F112: 50.8 | G112: 52.2 | H112: -1.4 | I112: 8.8 | J112: 7 | K112: 46.8 | L112: -5.4 | M112: 0.5 | N112: 1 | O112: 41.9 | P112: -10.3
B113: Citrobacter Clade B (Citrobacter farmeri CF_355) | C113: RHWV01000003 | D113: 39.4 | E113: 44 | F113: 53.8 | G113: 53.3 | H113: 0.5 | I113: 4.8 | J113: 4 | K113: 55.4 | L113: 2.1 | M113: 0.5 | N113: 1 | O113: 42.2 | P113: -11.1
B114: Citrobacter Clade B (Citrobacter rodentium DBS100) | C114: CP038008 | D114: 78.9 | E114: 101 | F114: 55.2 | G114: 54.7 | H114: 0.5 | I114: 4.9 | J114: 4 | K114: 55.2 | L114: 0.5 | M114: 0.4 | N114: 1 | O114: 47.0 | P114: -7.7 | Q114: Disrupted by phage insertion between lfiG and lfiI, lfiH is missing
B115: Citrobacter Clade B (Citrobacter rodentium ICC168) | C115: FN543502 | D115: 78.9 | E115: 101 | F115: 55.2 | G115: 54.7 | H115: 0.5 | I115: 4.9 | J115: 4 | K115: 55.2 | L115: 0.5 | M115: 0.4 | N115: 1 | O115: 47.0 | P115: -7.7 | Q115: Disrupted by phage insertion between lfiG and lfiI, lfiH is missing
B116: Citrobacter Clade B (Citrobacter rodentium NBRC 105723) | C116: BBNA01000038/044 | D116: 77.8 | E116: 100 | F116: 55.2 | G116: 54.5 | H116: 0.7 | I116: 4.9 | J116: 4 | K116: 55.2 | L116: 0.7 | M116: 0.4 | N116: 1 | O116: 47.0 | P116: -7.5 | Q116: Disrupted by phage insertion between lfiG and lfiI, lfiH is missing
B117: Citrobacter Clade B (Citrobacter sedlakii NBRC 105722) | C117: BBNB01000009/011 | D117: 40.0 | E117: 46 | F117: 55.0 | G117: 54.7 | H117: 0.3 | I117: 4.7 | J117: 5 | K117: 48.4 | L117: -6.3 | M117: 0.5 | N117: 1 | O117: 53.0 | P117: -1.7 | Q117: 2 copies of lafA
B118: Citrobacter Clade C (Citrobacter sp. nov 6 S646) | C118: PQMB01000002 | D118: 39.8 | E118: 44 | F118: 53.7 | G118: 52.5 | H118: =F118-G118 -> 1.2 | I118: 4.9 | J118: 4 | K118: 52.5 | L118: 0.0 | M118: 0.5 | N118: 1 | O118: 47.4 | P118: -5.1
B119: Citrobacter Clade C (Citrobacter sp. nov 6 S647) | C119: PQMA01000009 | D119: 39.8 | E119: 44 | F119: 53.7 | G119: 52.5 | H119: 1.2 | I119: 4.9 | J119: 4 | K119: 52.5 | L119: =K119-G119 -> 0.0 | M119: 0.5 | N119: 1 | O119: 47.4 | P119: -5.1
B120: Citrobacter Clade C (Citrobacter sp. nov 6 S648) | C120: PQLZ01000002 | D120: 39.8 | E120: 44 | F120: 53.7 | G120: 52.5 | H120: 1.2 | I120: 4.9 | J120: 4 | K120: 52.5 | L120: 0.0 | M120: 0.5 | N120: 1 | O120: 47.4 | P120: -5.1
B121: Citrobacter Clade C (Citrobacter sp. nov 6 S1285) | C121: PQLX01000012 | D121: 39.8 | E121: 44 | F121: 53.7 | G121: 52.5 | H121: 1.2 | I121: 4.9 | J121: 4 | K121: 52.5 | L121: 0.0 | M121: 0.5 | N121: 1 | O121: 47.4 | P121: -5.1
B122: Citrobacter Clade D (Citrobacter koseri 661_CKOS) | C122: JUYC01000167/207/419/450/471 | D122: 41.4 | E122: 46 | F122: 53.8 | G122: 53.7 | H122: 0.1 | I122: 5.9 | J122: 5 | K122: 51.2 | L122: -2.5 | M122: 0.5 | N122: 1 | O122: 49.8 | P122: -3.9 | Q122: 2 copies of lafA
B123: Citrobacter Clade D (Citrobacter koseri AR_0024) | C123: CP026709 | D123: 41.4 | E123: 46 | F123: 53.7 | G123: 53.7 | H123: 0.0 | I123: 5.9 | J123: 5 | K123: 51.3 | L123: -2.4 | M123: 0.5 | N123: 1 | O123: 49.6 | P123: -4.1 | Q123: 2 copies of lafA
B124: Citrobacter Clade D (Citrobacter koseri AR_0025) | C124: CP026697 | D124: 41.4 | E124: 46 | F124: 53.7 | G124: 53.9 | H124: -0.2 | I124: 5.9 | J124: 5 | K124: 51.2 | L124: -2.7 | M124: 0.5 | N124: 1 | O124: 49.8 | P124: -4.1 | Q124: 2 copies of lafA
B125: Citrobacter Clade D (Citrobacter koseri ATCC BAA-895) | C125: CP000822 | D125: 41.4 | E125: 46 | F125: 53.8 | G125: 53.8 | H125: 0.0 | I125: 5.9 | J125: 5 | K125: 51.3 | L125: -2.5 | M125: 0.5 | N125: 1 | O125: 50.2 | P125: -3.6 | Q125: 2 copies of lafA
B126: Citrobacter Clade D (Citrobacter koseri B1B) | C126: MBTW01000020 | D126: 41.4 | E126: 46 | F126: 53.7 | G126: 53.8 | H126: -0.1 | I126: 5.9 | J126: 5 | K126: 51.2 | L126: -2.6 | M126: 0.5 | N126: 1 | O126: 50.0 | P126: -3.8 | Q126: 2 copies of lafA
B127: Citrobacter Clade D (Citrobacter koseri BL23) | C127: SPPW01000005 | D127: 41.4 | E127: 46 | F127: 53.7 | G127: 53.8 | H127: -0.1 | I127: 5.9 | J127: 5 | K127: 51.3 | L127: -2.5 | M127: 0.5 | N127: 1 | O127: 49.6 | P127: -4.2 | Q127: 2 copies of lafA
B128: Citrobacter Clade D (Citrobacter koseri CK778) | C128: QKNA01000001 | D128: 41.4 | E128: 46 | F128: 53.7 | G128: 53.7 | H128: 0.0 | I128: 5.9 | J128: 5 | K128: 51.2 | L128: -2.5 | M128: 0.5 | N128: 1 | O128: 49.8 | P128: -3.9 | Q128: 2 copies of lafA
B129: Citrobacter Clade D (Citrobacter koseri DNF00568) | C129: KQ959524 | D129: 41.5 | E129: 46 | F129: 53.6 | G129: 53.7 | H129: -0.1 | I129: 5.9 | J129: 5 | K129: 51.3 | L129: -2.4 | M129: 0.5 | N129: 1 | O129: 49.6 | P129: -4.1 | Q129: 2 copies of lafA
B130: Citrobacter Clade D (Citrobacter koseri FDAARGOS_86) | C130: JTAV01000001 | D130: 41.4 | E130: 46 | F130: 53.7 | G130: 53.8 | H130: -0.1 | I130: 5.9 | J130: 5 | K130: 51.2 | L130: -2.6 | M130: 0.5 | N130: 1 | O130: 49.8 | P130: -4.0 | Q130: 2 copies of lafA
B131: Citrobacter Clade D (Citrobacter koseri FDAARGOS_164) | C131: LORR02000011 | D131: 41.4 | E131: 46 | F131: 53.7 | G131: 53.6 | H131: 0.1 | I131: 5.9 | J131: 5 | K131: 51.3 | L131: -2.3 | M131: 0.5 | N131: 1 | O131: 49.6 | P131: =O131-G131 -> -4.0 | Q131: 2 copies of lafA
B132: Citrobacter Clade D (Citrobacter koseri FDAARGOS_287) | C132: CP022073 | D132: 41.4 | E132: 46 | F132: 53.7 | G132: 53.8 | H132: -0.1 | I132: 5.9 | J132: 5 | K132: 51.3 | L132: -2.5 | M132: 0.5 | N132: 1 | O132: 49.6 | P132: -4.2 | Q132: 2 copies of lafA
B133: Citrobacter Clade D (Citrobacter koseri FDAARGOS_393) | C133: CP023527 | D133: 41.4 | E133: 46 | F133: 53.7 | G133: 53.8 | H133: -0.1 | I133: 5.9 | J133: 5 | K133: 51.3 | L133: -2.5 | M133: 0.5 | N133: 1 | O133: 49.6 | P133: -4.2 | Q133: 2 copies of lafA
B134: Citrobacter Clade D (Citrobacter koseri FDAARGOS_526) | C134: RKIT01000002 | D134: 41.4 | E134: 46 | F134: 53.7 | G134: 53.5 | H134: 0.2 | I134: 5.9 | J134: 5 | K134: 51.3 | L134: -2.2 | M134: 0.5 | N134: 1 | O134: 49.6 | P134: -3.9 | Q134: 2 copies of lafA
B135: Citrobacter Clade D (Citrobacter koseri FDAARGOS_530) | C135: CP033780 | D135: 41.4 | E135: 46 | F135: 53.7 | G135: 53.9 | H135: -0.2 | I135: 5.9 | J135: 5 | K135: 51.2 | L135: -2.7 | M135: 0.5 | N135: 1 | O135: 49.6 | P135: -4.3 | Q135: 2 copies of lafA
B136: Citrobacter Clade D (Citrobacter koseri GED7778C) | C136: KQ956060 | D136: 41.4 | E136: 46 | F136: 53.7 | G136: 53.8 | H136: -0.1 | I136: 5.9 | J136: 5 | K136: 51.3 | L136: -2.5 | M136: 0.5 | N136: 1 | O136: 49.6 | P136: -4.2 | Q136: 2 copies of lafA
B137: Citrobacter Clade D (Citrobacter koseri HAMBI_1287) | C137: QLLB01000001 | D137: 41.4 | E137: 46 | F137: 53.7 | G137: 53.8 | H137: -0.1 | I137: 5.9 | J137: 5 | K137: 51.2 | L137: -2.6 | M137: 0.5 | N137: 1 | O137: 49.6 | P137: -4.2 | Q137: 2 copies of lafA
B138: Citrobacter Clade D (Citrobacter koseri ICR003204) | C138: SEJQ01000024/057 | D138: 41.4 | E138: 46 | F138: 53.7 | G138: 53.8 | H138: -0.1 | I138: 5.9 | J138: 5 | K138: 51.4 | L138: -2.4 | M138: 0.5 | N138: 1 | O138: 49.8 | P138: -4.0 | Q138: 2 copies of lafA
B139: Citrobacter Clade D (Citrobacter koseri ICR003207) | C139: SEJT01000015/084 | D139: 41.4 | E139: 46 | F139: 53.7 | G139: 53.8 | H139: -0.1 | I139: 5.9 | J139: 5 | K139: 51.3 | L139: -2.5 | M139: 0.5 | N139: 1 | O139: 49.6 | P139: -4.2 | Q139: 2 copies of lafA
B140: Citrobacter Clade D (Citrobacter koseri L168) | C140: QHHL01000050 | D140: 41.4 | E140: 46 | F140: 53.7 | G140: 53.8 | H140: -0.1 | I140: 5.9 | J140: 5 | K140: 51.2 | L140: -2.6 | M140: 0.5 | N140: 1 | O140: 49.8 | P140: -4.0 | Q140: 2 copies of lafA
B141: Citrobacter Clade D (Citrobacter koseri NCTC10768) | C141: UFWP01000006 | D141: 41.4 | E141: 46 | F141: 53.7 | G141: 53.6 | H141: 0.1 | I141: 5.9 | J141: 5 | K141: 51.3 | L141: -2.3 | M141: 0.5 | N141: 1 | O141: 50.2 | P141: -3.4 | Q141: 2 copies of lafA
B142: Citrobacter Clade D (Citrobacter koseri NCTC10769) | C142: UFVV01000001 | D142: 41.4 | E142: 46 | F142: 53.7 | G142: 53.9 | H142: -0.2 | I142: 5.9 | J142: 5 | K142: 51.1 | L142: -2.8 | M142: 0.5 | N142: 1 | O142: 49.8 | P142: -4.1 | Q142: 2 copies of lafA
B143: Citrobacter Clade D (Citrobacter koseri NCTC10770) | C143: UFWC01000001 | D143: 41.4 | E143: 46 | F143: 53.7 | G143: 53.7 | H143: 0.0 | I143: 5.9 | J143: 5 | K143: 51.2 | L143: -2.5 | M143: 0.5 | N143: 1 | O143: 50.0 | P143: -3.7 | Q143: 2 copies of lafA
B144: Citrobacter Clade D (Citrobacter koseri NCTC10771) | C144: UAVT01000011 | D144: 41.4 | E144: 46 | F144: 53.8 | G144: 53.7 | H144: 0.1 | I144: 5.9 | J144: 5 | K144: 51.3 | L144: -2.4 | M144: 0.5 | N144: 1 | O144: 50.2 | P144: -3.5 | Q144: 2 copies of lafA
B145: Citrobacter Clade D (Citrobacter koseri NCTC10811) | C145: UAWE01000013 | D145: 41.4 | E145: 46 | F145: 53.7 | G145: 53.7 | H145: 0.0 | I145: 5.9 | J145: 5 | K145: 51.2 | L145: -2.5 | M145: 0.5 | N145: 1 | O145: 49.6 | P145: -4.1 | Q145: 2 copies of lafA
B146: Citrobacter Clade D (Citrobacter koseri NCTC10849) | C146: CAADIR010000002 | D146: 41.7 | E146: 46 | F146: 53.7 | G146: 53.6 | H146: 0.1 | I146: 5.9 | J146: 5 | K146: 51.3 | L146: -2.3 | M146: 0.5 | N146: 1 | O146: 49.8 | P146: -3.8 | Q146: 2 copies of lafA
B147: Citrobacter Clade D (Citrobacter koseri NCTC11074) | C147: UFVY01000003 | D147: 41.4 | E147: 46 | F147: 53.7 | G147: 53.6 | H147: 0.1 | I147: 5.9 | J147: 5 | K147: 51.1 | L147: -2.5 | M147: 0.5 | N147: 1 | O147: 50.0 | P147: -3.6 | Q147: 2 copies of lafA
B148: Citrobacter Clade D (Citrobacter koseri NCTC11076) | C148: UFVZ01000002 | D148: 41.4 | E148: 46 | F148: 53.7 | G148: 53.7 | H148: 0.0 | I148: 5.9 | J148: 5 | K148: 51.3 | L148: -2.4 | M148: 0.5 | N148: 1 | O148: 50.2 | P148: -3.5 | Q148: 2 copies of lafA
B149: Citrobacter Clade D (Citrobacter koseri NCTC11077) | C149: UFVW01000001 | D149: 41.4 | E149: 46 | F149: 53.7 | G149: 53.8 | H149: -0.1 | I149: 5.9 | J149: 5 | K149: 51.2 | L149: -2.6 | M149: 0.5 | N149: 1 | O149: 49.6 | P149: -4.2 | Q149: 2 copies of lafA
B150: Citrobacter Clade D (Citrobacter koseri PSS_7778B) | C150: KQ956146 | D150: 41.4 | E150: 46 | F150: 53.7 | G150: 53.8 | H150: =F150-G150 -> -0.1 | I150: 5.9 | J150: 5 | K150: 51.3 | L150: -2.5 | M150: 0.5 | N150: 1 | O150: 49.6 | P150: -4.2 | Q150: 2 copies of lafA
B151: Citrobacter Clade D (Citrobacter koseri YDC582) | C151: PGIF01000001 | D151: 41.4 | E151: 46 | F151: 53.7 | G151: 53.8 | H151: -0.1 | I151: 5.9 | J151: 5 | K151: 51.2 | L151: =K151-G151 -> -2.6 | M151: 0.5 | N151: 1 | O151: 49.8 | P151: -4.0 | Q151: 2 copies of lafA
B152: Enterobacter cancerogenus ATCC 33241 | C152: FYBA01000008 | D152: 38.4 | E152: 44 | F152: 56.4 | G152: 55.6 | H152: =F152-G152 -> 0.8 | I152: 4.2 | J152: 4 | K152: 54.2 | L152: =K152-G152 -> -1.4 | M152: 0.5 | N152: 1 | O152: 54.7 | P152: =O152-G152 -> -0.9
B153: Enterobacter cancerogenus ATCC 35316 | C153: GG704864 | D153: 40.2 | E153: 45 | F153: 56.4 | G153: 55.9 | H153: 0.5 | I153: 6.1 | J153: 5 | K153: 53.6 | L153: -2.3 | M153: 0.5 | N153: 1 | O153: 54.5 | P153: -1.4
B154: Enterobacter cancerogenus CFBP13530 | C154: QGAL01000009 | D154: 38.3 | E154: 44 | F154: 56.6 | G154: 55.6 | H154: 1.0 | I154: 4.2 | J154: 4 | K154: 54.0 | L154: -1.6 | M154: 0.5 | N154: 1 | O154: 55.1 | P154: -0.5
B155: Enterobacter cancerogenus CR-Eb1 | C155: CP025225 | D155: 37.9 | E155: 43 | F155: 56.5 | G155: 55.8 | H155: 0.7 | I155: 3.8 | J155: 3 | K155: 53.0 | L155: -2.8 | M155: 0.5 | N155: 1 | O155: 54.5 | P155: =O155-G155 -> -1.3
B156: Enterobacter cancerogenus FDAARGOS_232 | C156: POWA01000006 | D156: 40.2 | E156: 45 | F156: 56.4 | G156: 55.3 | H156: 1.1 | I156: 6.1 | J156: 5 | K156: 53.7 | L156: -1.6 | M156: 0.5 | N156: 1 | O156: 54.9 | P156: -0.4
B157: Enterobacter cancerogenus NS31 | C157: LDQJ01000011/029 | D157: 40.3 | E157: 45 | F157: 56.3 | G157: 55.6 | H157: 0.7 | I157: 6.1 | J157: 5 | K157: 53.9 | L157: -1.7 | M157: 0.5 | N157: 1 | O157: 55.3 | P157: -0.3
B158: Enterobacter cancerogenus NS104 | C158: LDQG01000026/032 | D158: 40.3 | E158: 45 | F158: 56.3 | G158: 55.6 | H158: 0.7 | I158: 6.1 | J158: 5 | K158: 53.9 | L158: -1.7 | M158: 0.5 | N158: 1 | O158: 55.3 | P158: -0.3
B159: Enterobacter cancerogenus NS111 | C159: LDQH01000028 | D159: 40.3 | E159: 45 | F159: 56.3 | G159: 55.6 | H159: 0.7 | I159: 6.1 | J159: 5 | K159: 53.9 | L159: -1.7 | M159: 0.5 | N159: 1 | O159: 55.3 | P159: -0.3
B160: Enterobacter cancerogenus NS188 | C160: LDQI01000015 | D160: 40.3 | E160: 45 | F160: 56.3 | G160: 55.6 | H160: 0.7 | I160: 6.1 | J160: 5 | K160: 53.9 | L160: -1.7 | M160: 0.5 | N160: 1 | O160: 55.3 | P160: -0.3
B161: Enterobacter chengduensis 405_ECLO | C161: JVIL01000028.1 | D161: 38.3 | E161: 44 | F161: 57.9 | G161: 56.2 | H161: 1.7 | I161: 4.2 | J161: 4 | K161: 55.3 | L161: -0.9 | M161: 0.5 | N161: 1 | O161: 53.2 | P161: -3
B162: Enterobacter chengduensis 414_ECLO | C162: JVIB01000047.1 | D162: 38.3 | E162: 44 | F162: 57.9 | G162: 56.2 | H162: 1.7 | I162: 4.2 | J162: 4 | K162: 55.3 | L162: =K162-G162 -> -0.9 | M162: 0.5 | N162: 1 | O162: 53.2 | P162: =O162-G162 -> -3
B163: Enterobacter chengduensis 44242 | C163: JZYA01000017/027 | D163: 38.3 | E163: 44 | F163: 57.9 | G163: 56.0 | H163: =F163-G163 -> 1.9 | I163: 4.2 | J163: 4 | K163: 55.3 | L163: =K163-G163 -> -0.7 | M163: 0.5 | N163: 1 | O163: 53.2 | P163: =O163-G163 -> -2.8
B164: Enterobacter chengduensis 44246 | C164: JZXZ01000011 | D164: 38.3 | E164: 44 | F164: 57.9 | G164: 56.0 | H164: 1.9 | I164: 4.2 | J164: 4 | K164: 55.3 | L164: -0.7 | M164: 0.5 | N164: 1 | O164: 53.2 | P164: -2.8
B165: Enterobacter chengduensis e2032 | C165: FKBK01000008.1 | D165: 38.3 | E165: 44 | F165: 57.9 | G165: 55.9 | H165: 2 | I165: 4.2 | J165: 4 | K165: 55.3 | L165: -0.6 | M165: 0.5 | N165: 1 | O165: 53.2 | P165: -2.7
B166: Enterobacter chengduensis FDAARGOS_286 | C166: NJEZ02000001.1 | D166: 38.3 | E166: 44 | F166: 57.9 | G166: 56.0 | H166: 1.9 | I166: 4.2 | J166: 4 | K166: 55.3 | L166: -0.7 | M166: 0.5 | N166: 1 | O166: 53.2 | P166: -2.8
B167: Enterobacter chengduensis GN02468 | C167: LEDT02000034 | D167: 38.3 | E167: 44 | F167: 57.9 | G167: 56.2 | H167: 1.7 | I167: 4.2 | J167: 4 | K167: 55.3 | L167: -0.9 | M167: 0.5 | N167: 1 | O167: 53.2 | P167: -3.0
B168: Enterobacter chengduensis GN02587 | C168: LEDN01000002 | D168: 38.3 | E168: 44 | F168: 57.9 | G168: 56.1 | H168: 1.8 | I168: 4.2 | J168: 4 | K168: 55.3 | L168: -0.8 | M168: 0.5 | N168: 1 | O168: 53.2 | P168: -2.9
B169: Enterobacter chengduensis GN04826 | C169: LVTT01000021/171 | D169: 38.3 | E169: 44 | F169: 57.9 | G169: 56.1 | H169: 1.8 | I169: 4.2 | J169: 4 | K169: 55.3 | L169: -0.8 | M169: 0.5 | N169: 1 | O169: 53.2 | P169: -2.9
B170: Enterobacter huaxiensis 090008 | C170: QZCT01000012 | D170: 39.5 | E170: 44 | F170: 55.9 | G170: 55.7 | H170: 0.2 | I170: 5.4 | J170: 4 | K170: 55.5 | L170: -0.2 | M170: 0.5 | N170: 1 | O170: 53.3 | P170: -2.4
B171: Enterobacter huaxiensis WCHEHu045002 | C171: RWHU01000011 | D171: 39.5 | E171: 44 | F171: 56.0 | G171: 55.9 | H171: 0.1 | I171: 5.4 | J171: 4 | K171: 55.6 | L171: -0.3 | M171: 0.5 | N171: 1 | O171: 53.3 | P171: -2.6
B172: Enterobacter roggenkampii DS23372 | C172: NPNW01000005 | D172: 40.2 | E172: 45 | F172: 57.4 | G172: 56.1 | H172: 1.3 | I172: 6.1 | J172: 5 | K172: 55.1 | L172: -1.0 | M172: 0.5 | N172: 1 | O172: 57.4 | P172: 1.3
B173: Enterobacter sp. nov 8 153C2 | C173: QMCQ01000012/035/052 | D173: 41.9 | E173: 46 | F173: 53.9 | G173: 55.4 | H173: -1.5 | I173: 7.4 | J173: 6 | K173: 50.3 | L173: -5.1 | M173: 0.5 | N173: 1 | O173: 52.1 | P173: -3.3
B174: Enterobacter sp. nov 8 451 | C174: NSIZ01000015/027/066 | D174: 41.9 | E174: 46 | F174: 53.8 | G174: 55.6 | H174: -1.8 | I174: 7.4 | J174: 6 | K174: 50.2 | L174: -5.4 | M174: 0.5 | N174: 1 | O174: 51.9 | P174: -3.7
B175: Enterobacter sp. nov 8 C45 | C175: LT991957.1 | D175: 41.9 | E175: 46 | F175: 53.8 | G175: 55.2 | H175: -1.4 | I175: 7.4 | J175: 6 | K175: 50.1 | L175: -5.1 | M175: 0.5 | N175: 1 | O175: 52.1 | P175: -3.1
B176: Enterobacter sp. nov 8 GEN000188 | C176: SEKG01000002 | D176: 41.9 | E176: 46 | F176: 53.8 | G176: 55.2 | H176: =F176-G176 -> -1.4 | I176: 7.4 | J176: 6 | K176: 50.1 | L176: =K176-G176 -> -5.1 | M176: 0.5 | N176: 1 | O176: 52.1 | P176: =O176-G176 -> -3.1
B177: Enterobacter sp. nov 8 GN06232 | C177: LVVA01000018 | D177: 41.9 | E177: 46 | F177: 53.8 | G177: 55.7 | H177: -1.9 | I177: 7.4 | J177: 6 | K177: 50.2 | L177: -5.5 | M177: 0.5 | N177: 1 | O177: 51.9 | P177: -3.8
B178: Enterobacter sp. nov 10 e483 | C178: FKEG01000006.1 | D178: 39.5 | E178: 45 | F178: 56.3 | G178: 55.4 | H178: 0.9 | I178: 5.2 | J178: 5 | K178: 51.2 | L178: -4.2 | M178: 0.5 | N178: 1 | O178: 54.1 | P178: -1.3
B179: Enterobacter sp. nov 10 GN03164 | C179: LECZ01000026 | D179: 40.8 | E179: 45 | F179: 55.5 | G179: 55.7 | H179: -0.2 | I179: 6.5 | J179: 5 | K179: 47.7 | L179: -8.0 | M179: 0.4 | N179: 1 | O179: 51.8 | P179: -3.9
B180: Enterobacter sp. nov 10 GN04363 | C180: LRCR01000003 | D180: 39.5 | E180: 45 | F180: 56.3 | G180: 56.0 | H180: 0.3 | I180: 5.2 | J180: 5 | K180: 51.3 | L180: -4.7 | M180: 0.5 | N180: 1 | O180: 54.1 | P180: -1.9
B181: Enterobacter sp. nov 10 GN05526 | C181: LVUF01000060/061 | D181: 39.5 | E181: 45 | F181: 56.3 | G181: 55.7 | H181: 0.6 | I181: 5.2 | J181: 5 | K181: 51.3 | L181: -4.4 | M181: 0.5 | N181: 1 | O181: 54.3 | P181: -1.4
B182: Escherichia albertii 05-3106 | C182: CP030778 | D182: 43.7 | E182: 49 | F182: 52.9 | G182: 49.8 | H182: 3.1 | I182: 9.1 | J182: 8 | K182: 46.2 | L182: -3.6 | M182: 0.8 | N182: 2 | O182: 44.0 | P182: -5.8
B183: Escherichia albertii 07-3866 | C183: CP030781 | D183: 40.9 | E183: 47 | F183: 52.6 | G183: 49.8 | H183: 2.8 | I183: 8.4 | J183: 9 | K183: 44.2 | L183: -5.6 | M183: - | N183: - | O183: - | P183: - | Q183: Missing lfhB
B184: Escherichia albertii 20H38 | C184: BBVE01000030/040 | D184: 42.4 | E184: 48 | F184: 52.8 | G184: 49.5 | H184: 3.3 | I184: 8.4 | J184: 9 | K184: 44.2 | L184: -5.3 | M184: - | N184: - | O184: - | P184: -
B185: Escherichia albertii 403_13 | C185: PDHK01000002 | D185: 46.0 | E185: 53 | F185: 51.9 | G185: 49.6 | H185: =F185-G185 -> 2.3 | I185: 8.5 | J185: 9 | K185: 46.1 | L185: =K185-G185 -> -3.5 | M185: 0.8 | N185: 2 | O185: 43.8 | P185: =O185-G185 -> -5.8 | Q185: Contains additional variable region between lfgM and lfgA
B186: Escherichia albertii B156 | C186: ADJH01000009 | D186: 81.1 | E186: 102 | F186: 51.2 | G186: 49.6 | H186: 1.6 | I186: 8.4 | J186: 10 | K186: 44.2 | L186: -5.4 | M186: - | N186: - | O186: - | P186: - | Q186: lafC reading frame disrupted by phage integration
B187: Escherichia albertii EC03-127 | C187: BBVU01000038/048 | D187: 42.1 | E187: 49 | F187: 52.8 | G187: 49.6 | H187: 3.2 | I187: 8.4 | J187: 10 | K187: 44.3 | L187: -5.3 | M187: - | N187: - | O187: - | P187: -
B188: Escherichia albertii EC03-195 | C188: BBVV01000020 | D188: 44.4 | E188: 49 | F188: 52.9 | G188: 49.7 | H188: 3.2 | I188: 9.1 | J188: 8 | K188: 46.1 | L188: -3.6 | M188: 0.8 | N188: 2 | O188: 43.7 | P188: =O188-G188 -> -6.0
B189: Escherichia albertii EC05-81 | C189: BBVY01000022 | D189: 43.9 | E189: 49 | F189: 52.8 | G189: 49.7 | H189: 3.1 | I189: 9.1 | J189: 8 | K189: 46.2 | L189: -3.5 | M189: 0.8 | N189: 2 | O189: 43.9 | P189: =O189-G189 -> -5.8
B190: Escherichia albertii EC05-160 | C190: BBVW01000001 | D190: 41.5 | E190: 46 | F190: 53.4 | G190: 49.6 | H190: 3.8 | I190: 6.8 | J190: 7 | K190: 45.6 | L190: -4.0 | M190: - | N190: - | O190: - | P190: -
B191: Escherichia albertii EC06-170 | C191: AP014857 | D191: 41.5 | E191: 46 | F191: 53.4 | G191: 49.8 | H191: 3.6 | I191: 6.7 | J191: 7 | K191: 45.6 | L191: -4.2 | M191: - | N191: - | O191: - | P191: -
B192: Escherichia albertii Gyo_GY2 | C192: BJDA01000025 | D192: 44.6 | E192: 50 | F192: 52.9 | G192: 49.8 | H192: 3.1 | I192: 9.1 | J192: 8 | K192: 46.2 | L192: -3.6 | M192: 0.8 | N192: 2 | O192: 43.9 | P192: =O192-G192 -> -5.9
B193: Escherichia albertii Hiroshima3582 | C193: BEGZ01000348/481 | D193: 56.3 | E193: 68 | F193: 49.5 | G193: 49.5 | H193: 0.0 | I193: 18.9 | J193: 23 | K193: 42.0 | L193: -7.5 | M193: 0.8 | N193: 2 | O193: 43.9 | P193: =O193-G193 -> -5.6 | Q193: Contains additional variable region lfgM and lfgA
B194: Escherichia albertii K7394 | C194: BBWA01000004 | D194: 56.3 | E194: 68 | F194: 49.5 | G194: 49.4 | H194: 0.1 | I194: 18.9 | J194: 23 | K194: 42.0 | L194: -7.4 | M194: 0.8 | N194: 2 | O194: 43.9 | P194: =O194-G194 -> -5.5 | Q194: Contains additional variable region lfgM and lfgA
B195: Escherichia albertii K7744 | C195: BBWB01000026 | D195: 44.2 | E195: 49 | F195: 52.9 | G195: 49.7 | H195: 3.2 | I195: 9.2 | J195: 8 | K195: 46.2 | L195: -3.5 | M195: 0.8 | N195: 2 | O195: 43.9 | P195: =O195-G195 -> -5.8
B196: Escherichia albertii KF1 | C196: CP007025 | D196: 43.1 | E196: 46 | F196: 50.5 | G196: 49.7 | H196: 0.8 | I196: 10.1 | J196: 8 | K196: 43.0 | L196: -6.7 | M196: 0.8 | N196: 2 | O196: 43.7 | P196: =O196-G196 -> -6.0 | Q196: Missing lfgABCDEF; Frameshift in lafS; contains additional variable regions between lfiM and lafK and between lfgM and lfgG
B197: Escherichia albertii Mex-12/320a | C197: SIZV01000027 | D197: 40.5 | E197: 46 | F197: 53.3 | G197: 49.6 | H197: 3.7 | I197: 6.8 | J197: 7 | K197: 45.5 | L197: -4.1 | M197: - | N197: - | O197: - | P197: -
B198: Escherichia albertii Mkr3964 | C198: BJDC01000021 | D198: 48.5 | E198: 51 | F198: 51.2 | G198: 49.4 | H198: 1.8 | I198: 10.1 | J198: 8 | K198: 43.0 | L198: -6.4 | M198: 0.8 | N198: 2 | O198: 43.8 | P198: =O198-G198 -> -5.6 | Q198: Contains additional variable region between lfiM and lafK and between lfgM and lfgA
B199: Escherichia albertii NCTC 9362 | C199: CP034213 | D199: 34.1 | E199: 39 | F199: 53.9 | G199: 50.1 | H199: 3.8 | I199: 4.0 | J199: 2 | K199: 52.6 | L199: 2.5 | M199: 0.8 | N199: 2 | O199: 44.1 | P199: =O199-G199 -> -6.0 | Q199: Missing lfiEFGHIJ; partial lafK disrupted by transposase insertion; Contains partial VR1
B200: Escherichia albertii NIAH_Bird_8 | C200: BBVQ01000023 | D200: 42.3 | E200: 48 | F200: 53.2 | G200: 49.5 | H200: 3.7 | I200: 6.8 | J200: 7 | K200: 45.5 | L200: =K200-G200 -> -4.0 | M200: 0.8 | N200: 2 | O200: 44.1 | P200: =O200-G200 -> -5.4
B201: Escherichia albertii NIAH_Bird_13 | C201: BBVI01000002 | D201: 41.5 | E201: 46 | F201: 53.4 | G201: 49.7 | H201: 3.7 | I201: 6.7 | J201: 7 | K201: 45.6 | L201: =K201-G201 -> -4.1 | M201: - | N201: - | O201: - | P201: -
... 400 more rows

Sheet Supplementary Table S3
B1: Protein | C1: Average size | D1: # Strains | E1: Families in which present | F1: Genera in which present | G1: % AAI among | H1: Predicted function | I1: Conserved domain | J1: E-value | K1: Conserved domain description
B2: short name | C2: (# aa) | G2: orthologues
A3: Variable region VR1
B4: Acp | C4: 80 | D4: 1 | E4: Enterobacteriaceae | F4: 1 (Citrobacter Clade A) | G4: - | H4: Acyl carrier protein | I4: - | J4: - | K4: -
B5: CadC | C5: 258 | D5: 4 | E5: Budviciaceae | F5: 1 (Pragia) | G5: 99.1 | H5: Transcriptional regulator | I5: COG3710 | J5: 3.00E-19 | K5: DNA-binding winged helix-turn-helix (wHTH) domain
B6: CaiC | C6: 459 | D6: 1 | E6: Enterobacteriaceae | F6: 1 (Citrobacter Clade A) | G6: - | H6: Fatty acid Coa-ligase | I6: cd05922 | J6: 1.01e-116 | K6: Uncharacterized subfamily of fatty acid CoA ligase (FACL)
B7: CarB | C7: 422 | D7: 30 | E7: Enterobacteriaceae/Hafniaceae | F7: 3 | G7: 72.7 | H7: Carbomoyl-phosphate synthase-like protein | I7: PRK12767 | J7: 1.40E-34 | K7: carbamoyl phosphate synthase-like protein
B8: DUF1851 | C8: 218 | D8: 1 | E8: Enterobacteriaceae | F8: Escherichia | G8: - | H8: Protein of unknown function (DUF1851) | I8: pfam08887 | J8: 2.42e-25 | K8: GAD-like domain
B9: DUF2169 | C9: 395 | D9: 1 | E9: Enterobacteriaceae | F9: Escherichia | G9: - | H9: Protein of unknown function (DUF2169) | I9: pfam09937 | J9: 3.81e-87 | K9: Uncharacterized protein conserved in bacteria (DUF2169)
B10: DUF4396 | C10: 221 | D10: 1 | E10: Enterobacteriaceae | F10: 1 (Mangrovibacter) | G10: - | H10: Protein of unknown function (DUF4396) | I10: pfam14342 | J10: 8.73e-34 | K10: Domain of unknown function (DUF4396)
B11: DUF711 | C11: 410 | D11: 1 | E11: Enterobacteriaceae | F11: 1 (Cedecea) | G11: - | H11: Protein of unknown function DUF711 | I11: pfam05167 | J11: 5.43E-61 | K11: Uncharacterized ACR (DUF711)
B12: FabG1 | C12: 246 | D12: 1 | E12: Enterobacteriaceae | F12: 1 (Citrobacter Clade A) | G12: - | H12: 3-ketoacyl-(acyl-carrier-protein) reductase | I12: PRK05653 | J12: 8.30E-64 | K12: 3-ketoacyl-(acyl-carrier-protein) reductase
B13: FabG2 | C13: 251 | D13: 1 | E13: Enterobacteriaceae | F13: 1 (Citrobacter Clade A) | G13: - | H13: 3-ketoacyl-(acyl-carrier-protein) reductase | I13: PRK05653 | J13: 6.39E-79 | K13: 3-ketoacyl-(acyl-carrier-protein) reductase
B14: Fic | C14: 358 | D14: 11 | E14: Enterobacteriaceae | F14: 2 | G14: 97.6 | H14: Fic family protein | I14: COG3177 | J14: 3.02E-52 | K14: Fic family protein [Transcription]
B15: FkbM1 | C15: 281 | D15: 1 | E15: Enterobacteriaceae | F15: 1 (Buttiauxella) | G15: - | H15: FkbM family methyltransferase | I15: TIGR01444 | J15: 2.01E-28 | K15: methyltransferase, FkbM family
B16: FkbM2 | C16: 269 | D16: 2 | E16: Enterobacteriaceae | F16: 1 (Citrobacter Clade A) | G16: 99.2 | H16: FkbM family methyltransferase | I16: TIGR01444 | J16: 1.16E-16 | K16: methyltransferase, FkbM family
B17: FkbM3 | C17: 274 | D17: 13 | E17: Hafniaceae | F17: 2 | G17: 93.0 | H17: FkbM family methyltransferase | I17: TIGR01444 | J17: 3.13E-23 | K17: methyltransferase, FkbM family
B18: GT2-1 | C18: 828 | D18: 222 | E18: Enterobacteriaceae | F18: 8 | G18: 76.9 | H18: Glycosyltransferase family 2 | I18: pfam00535 | J18: 9.05E-15 | K18: Glycosyl transferase family 2
B19: GT2-2 | C19: 870 | D19: 1 | E19: Enterobacteriaceae | F19: 1 (Metakosakonia) | G19: - | H19: Glycosyltransferase family 2 | I19: pfam00535 | J19: 1.98E-14 | K19: Glycosyl transferase family 2
B20: GT2-3 | C20: 474 | D20: 99 | E20: Enterobacteriaceae/Hafniaceae | F20: 11 | G20: 67.1 | H20: Glycosyltransferase family 2 | I20: pfam00535 | J20: 1.35E-14 | K20: Glycosyl transferase family 2
B21: GT2-4 | C21: 505 | D21: 1 | E21: Yersiniaceae | F21: 1 (Rouxiella) | G21: - | H21: Glycosyltransferase family 2 | I21: pfam00535 | J21: 4.41E-10 | K21: Glycosyl transferase family 2
B22: GT2-5 | C22: 476 | D22: 2 | E22: Erwiniaceae | F22: 1 (Erwinia) | G22: 62.7 | H22: Glycosyltransferase family 2 | I22: pfam00535 | J22: 5.95E-11 | K22: Glycosyl transferase family 2
B23: GT2-6 | C23: 784 | D23: 1 | E23: Enterobacteriaceae | F23: 1 (Citrobacter Clade A) | G23: - | H23: Glycosyltransferase family 2 | I23: pfam00535 | J23: 9.08E-19 | K23: Glycosyl transferase family 2
B24: GT2-7 | C24: 358 | D24: 30 | E24: Enterobacteriaceae/Hafniaceae | F24: 3 | G24: 73.2 | H24: Glycosyltransferase family 2 | I24: pfam00535 | J24: 7.54E-23 | K24: Glycosyl transferase family 2
B25: GT2-8 | C25: 345 | D25: 1 | E25: Enterobacteriaceae | F25: 1 (Cedecea) | G25: - | H25: Glycosyltransferase family 2 | I25: pfam00535 | J25: 1.19e-35 | K25: Glycosyl transferase family 2
B26: GT2-9 | C26: 347 | D26: 1 | E26: Enterobacteriaceae | F26: 1 (Citrobacter Clade A) | G26: - | H26: Glycosyltransferase family 2 | I26: pfam00535 | J26: 7.94E-35 | K26: Glycosyl transferase family 2
B27: GT2-10 | C27: 357 | D27: 35 | E27: Enterobacteriaceae | F27: 3 | G27: 88.8 | H27: Glycosyltransferase family 2 | I27: pfam00535 | J27: 7.47E-32 | K27: Glycosyl transferase family 2
B28: GT4 | C28: 759 | D28: 17 | E28: Enterobacteriaceae/Erwiniaceae | F28: 6 | G28: 69.0 | H28: Glycosyltransferase family 4 | I28: cd03801 | J28: 3.50E-19 | K28: phosphatidyl-myo-inositol mannosyltransferase
B29: GT9-1 | C29: 703 | D29: 1 | E29: Enterobacteriaceae | F29: 1 (Cedecea) | G29: - | H29: Glycosyltransferase family 9 | I29: cd03789 | J29: 2.93E-20 | K29: lipopolysaccharide heptosyltransferase and similar proteins
B30: GT9-2 | C30: 694 | D30: 28 | E30: Enterobacteriaceae | F30: 1 (Citrobacter Clade A) | G30: 91.3 | H30: Glycosyltransferase family 9 | I30: cd03789 | J30: 3.60E-16 | K30: lipopolysaccharide heptosyltransferase and similar proteins
B31: GT9-3 | C31: 743 | D31: 2 | E31: Enterobacteriaceae | F31: 1 (Citrobacter Clade A) | G31: 99.3 | H31: Glycosyltransferase family 9 | I31: cd03789 | J31: 5.06E-22 | K31: lipopolysaccharide heptosyltransferase and similar proteins
B32: GT9-4 | C32: 319 | D32: 34 | E32: Enterobacteriaceae | F32: 2 | G32: 90.7 | H32: Glycosyltransferase family 9 | I32: cd03789 | J32: 7.58E-22 | K32: lipopolysaccharide heptosyltransferase and similar proteins
B33: GT9-5 | C33: 693 | D33: 5 | E33: Enterobacteriaceae | F33: 1 (Enterobacter) | G33: 96.8 | H33: Glycosyltransferase family 9 | I33: cd03789 | J33: 8.36E-27 | K33: lipopolysaccharide heptosyltransferase and similar proteins
B34: GT25-1 | C34: 220 | D34: 17 | E34: Budviciaceae/Enterobacteriaceae/Erwiniaceae | F34: 5 | G34: 73.6 | H34: Glycosyltransferase family 25 | I34: cd06532 | J34: 2.27E-12 | K34: Glycosyltransferase family 25 [lipooligosaccharide (LOS) biosynthesis protein] involved in LOS biosynthesis.
B35: GT25-2 | C35: 220 | D35: 5 | E35: Enterobacteriaceae | F35: 1 (Enterobacter) | G35: 99.2 | H35: Glycosyltransferase family 25 | I35: cd06532 | J35: 3.03E-12 | K35: Glycosyltransferase family 25 [lipooligosaccharide (LOS) biosynthesis protein] involved in LOS biosynthesis.
B36: GT25-3 | C36: 219 | D36: 1 | E36: Enterobacteriaceae | F36: 1 (Cedecea) | G36: - | H36: Glycosyltransferase family 25 | I36: CD06532 | J36: 1.04E-11 | K36: Glycosyltransferase family 25 [lipooligosaccharide (LOS) biosynthesis protein] involved in LOS biosynthesis.
B37: GT25-4 | C37: 607 | D37: 3 | E37: Enterobacteriaceae | F37: 3 | G37: 59.0 | H37: Glycosyltransferase family 25 | I37: cd06532 | J37: 1.01E-11 | K37: Glycosyltransferase family 25 [lipooligosaccharide (LOS) biosynthesis protein] involved in LOS biosynthesis.
B38: GT32-1 | C38: 218 | D38: 6 | E38: Enterobacteriaceae | F38: 2 | G38: 82.2 | H38: Glycosyltransferase family 32 | I38: COG3774 | J38: 3.64E-10 | K38: Mannosyltransferase OCH1 or related enzyme
B39: GT32-2 | C39: 262 | D39: 8 | E39: Enterobacteriaceae | F39: 2 | G39: 78.5 | H39: Glycosyltransferase family 32 | I39: COG3774 | J39: 5.79E-04 | K39: Mannosyltransferase OCH1 or related enzyme
B40: Hcp1 | C40: 164 | D40: 2 | E40: Enterobacteriaceae | F40: 1 (Lelliottia) | G40: 98.7 | H40: Type VI secretion system effector Hcp | I40: pfam05638 | J40: 1.48E-30 | K40: Type VI secretion system effector, Hcp
B41: HigA | C41: 109 | D41: 2 | E41: Yersiniaceae | F41: 1 (Yersinia) | G41: 100.0 | H41: Toxin antidote protein HigA | I41: COG3093 | J41: 6.80E-29 | K41: Plasmid maintenance system antidote protein VapI, contains XRE-type HTH domain
B42: HigB | C42: 96 | D42: 2 | E42: Yersiniaceae | F42: 1 (Yersinia) | G42: 98.9 | H42: Type II toxin HigB | I42: pfam05015 | J42: 6.53E-27 | K42: RelE-like toxin of type II toxin-antitoxin system HigB
B43: Hyp1 | C43: 349 | D43: 2 | E43: Budviciaceae | F43: 1 (Budvicia) | G43: 100.0 | H43: Hypothetical protein | I43: - | J43: - | K43: -
B44: Hyp2 | C44: 245 | D44: 2 | E44: Budviciaceae | F44: 1 (Budvicia) | G44: 100.0 | H44: Hypothetical protein | I44: - | J44: - | K44: -
B45: Hyp5 | C45: 97 | D45: 4 | E45: Budviciaceae | F45: 1 (Pragia) | G45: 99.0 | H45: Hypothetical protein | I45: - | J45: - | K45: -
B46: Hyp6 | C46: 155 | D46: 4 | E46: Budviciaceae | F46: 1 (Pragia) | G46: 99.5 | H46: Hypothetical protein | I46: - | J46: - | K46: -
B47: Hyp7 | C47: 65 | D47: 1 | E47: Enterobacteriaceae | F47: 1 (Buttiauxella) | G47: - | H47: Hypothetical protein | I47: - | J47: - | K47: -
B48: Hyp8 | C48: 473 | D48: 1 | E48: Enterobacteriaceae | F48: 1 (Cedecea) | G48: - | H48: Hypothetical protein | I48: - | J48: - | K48: -
B49: Hyp21 | C49: 209 | D49: 2 | E49: Enterobacteriaceae | F49: 1 (Citrobacter Clade A) | G49: 97.6 | H49: Hypothetical protein | I49: - | J49: - | K49: -
B50: Hyp42 | C50: 257 | D50: 3 | E50: Enterobacteriaceae | F50: 3 | G50: 60.0 | H50: Hypothetical protein | I50: - | J50: - | K50: -
B51: Hyp43 | C51: 92 | D51: 7 | E51: Enterobacteriaceae | F51: 1 (Escherichia) | G51: 99.2 | H51: Hypothetical protein | I51: - | J51: - | K51: -
B52: Hyp44 | C52: 325 | D52: 9 | E52: Enterobacteriaceae | F52: 1 (Escherichia) | G52: 99.5 | H52: Hypothetical protein | I52: - | J52: - | K52: -
B53: Hyp45 | C53: 56 | D53: 13 | E53: Enterobacteriaceae | F53: 1 (Escherichia) | G53: 100.0 | H53: Hypothetical protein | I53: - | J53: - | K53: -
B54: Hyp46 | C54: 151 | D54: 13 | E54: Enterobacteriaceae | F54: 1 (Escherichia) | G54: 98.2 | H54: Hypothetical protein | I54: - | J54: - | K54: -
B55: Hyp47 | C55: 125 | D55: 14 | E55: Enterobacteriaceae | F55: 1 (Escherichia) | G55: 96.4 | H55: Hypothetical protein | I55: - | J55: - | K55: -
B56: Hyp48 | C56: 216 | D56: 14 | E56: Enterobacteriaceae | F56: 1 (Escherichia) | G56: 81.2 | H56: Hypothetical protein | I56: - | J56: - | K56: -
B57: Hyp49 | C57: 165 | D57: 7 | E57: Enterobacteriaceae | F57: 1 (Escherichia) | G57: 92.8 | H57: Hypothetical protein | I57: - | J57: - | K57: -
B58: Hyp50 | C58: 127 | D58: 7 | E58: Enterobacteriaceae | F58: 1 (Escherichia) | G58: 96.6 | H58: Hypothetical protein | I58: - | J58: - | K58: -
B59: Hyp51 | C59: 187 | D59: 7 | E59: Enterobacteriaceae | F59: 1 (Escherichia) | G59: 85.7 | H59: Hypothetical protein | I59: - | J59: - | K59: -
B60: Hyp64 | C60: 112 | D60: 21 | E60: Enterobacteriaceae | F60: 1 (Escherichia) | G60: 91.0 | H60: Hypothetical protein | I60: - | J60: - | K60: -
B61: Hyp65 | C61: 214 | D61: 2 | E61: Enterobacteriaceae | F61: 1 (Escherichia) | G61: 100.0 | H61: Hypothetical protein | I61: - | J61: - | K61: -
B62: Hyp66 | C62: 110 | D62: 2 | E62: Enterobacteriaceae | F62: 1 (Escherichia) | G62: 100.0 | H62: Hypothetical protein | I62: - | J62: - | K62: -
B63: Hyp67 | C63: 152 | D63: 2 | E63: Enterobacteriaceae | F63: 1 (Escherichia) | G63: 100.0 | H63: Hypothetical protein | I63: - | J63: - | K63: -
B64: Hyp68 | C64: 60 | D64: 2 | E64: Enterobacteriaceae | F64: 1 (Escherichia) | G64: 100.0 | H64: Hypothetical protein | I64: - | J64: - | K64: -
B65: Hyp69 | C65: 282 | D65: 2 | E65: Enterobacteriaceae | F65: 1 (Escherichia) | G65: 99.6 | H65: Hypothetical protein | I65: - | J65: - | K65: -
B66: Hyp70 | C66: 57 | D66: 2 | E66: Enterobacteriaceae | F66: 1 (Escherichia) | G66: 100.0 | H66: Hypothetical protein | I66: - | J66: - | K66: -
B67: Hyp71 | C67: 183 | D67: 2 | E67: Enterobacteriaceae | F67: 1 (Escherichia) | G67: 100.0 | H67: Hypothetical protein | I67: - | J67: - | K67: -
B68: Hyp72 | C68: 338 | D68: 2 | E68: Enterobacteriaceae | F68: 1 (Escherichia) | G68: 100.0 | H68: Hypothetical protein | I68: - | J68: - | K68: -
B69: Hyp73 | C69: 204 | D69: 2 | E69: Enterobacteriaceae | F69: 1 (Escherichia) | G69: 99.5 | H69: Hypothetical protein | I69: - | J69: - | K69: -
B70: Hyp74 | C70: 165 | D70: 16 | E70: Enterobacteriaceae | F70: 1 (Escherichia) | G70: 99.8 | H70: Hypothetical protein | I70: - | J70: - | K70: -
B71: Hyp75 | C71: 184 | D71: 9 | E71: Enterobacteriaceae | F71: 1 (Escherichia) | G71: 93.6 | H71: Hypothetical protein | I71: - | J71: - | K71: -
B72: Hyp76 | C72: 273 | D72: 3 | E72: Enterobacteriaceae | F72: 1 (Escherichia) | G72: 100.0 | H72: Hypothetical protein | I72: - | J72: - | K72: -
B73: Hyp79 | C73: 91 | D73: 1 | E73: Enterobacteriaceae | F73: 1 (Escherichia) | G73: - | H73: Hypothetical protein | I73: - | J73: - | K73: -
B74: Hyp80 | C74: 160 | D74: 1 | E74: Enterobacteriaceae | F74: 1 (Escherichia) | G74: - | H74: Hypothetical protein | I74: - | J74: - | K74: -
B75: Hyp81 | C75: 111 | D75: 1 | E75: Enterobacteriaceae | F75: 1 (Escherichia) | G75: - | H75: Hypothetical protein | I75: - | J75: - | K75: -
B76: Hyp82 | C76: 79 | D76: 1 | E76: Enterobacteriaceae | F76: 1 (Escherichia) | G76: - | H76: Hypothetical protein | I76: - | J76: - | K76: -
B77: Hyp83 | C77: 109 | D77: 1 | E77: Enterobacteriaceae | F77: 1 (Escherichia) | G77: - | H77: Hypothetical protein | I77: - | J77: - | K77: -
B78: Hyp84 | C78: 220 | D78: 1 | E78: Enterobacteriaceae | F78: 1 (Escherichia) | G78: - | H78: Hypothetical protein | I78: - | J78: - | K78: -
B79: Hyp85 | C79: 77 | D79: 1 | E79: Enterobacteriaceae | F79: 1 (Escherichia) | G79: - | H79: Hypothetical protein | I79: - | J79: - | K79: -
B80: Hyp86 | C80: 52 | D80: 1 | E80: Enterobacteriaceae | F80: 1 (Escherichia) | G80: - | H80: Hypothetical protein | I80: - | J80: - | K80: -
B81: Hyp87 | C81: 262 | D81: 1 | E81: Enterobacteriaceae | F81: 1 (Escherichia) | G81: - | H81: Hypothetical protein | I81: - | J81: - | K81: -
B82: Hyp88 | C82: 69 | D82: 45 | E82: Enterobacteriaceae | F82: 1 (Escherichia) | G82: 93.7 | H82: Hypothetical protein | I82: - | J82: - | K82: -
B83: Hyp89 | C83: 466 | D83: 1 | E83: Enterobacteriaceae | F83: 1 (Klyuvera) | G83: - | H83: Hypothetical protein | I83: - | J83: - | K83: -
B84: Hyp91 | C84: 110 | D84: 2 | E84: Enterobacteriaceae | F84: 1 (Lelliottia) | G84: 64.8 | H84: Hypothetical protein | I84: - | J84: - | K84: -
B85: Hyp92 | C85: 185 | D85: 2 | E85: Enterobacteriaceae | F85: 1 (Lelliottia) | G85: 80.5 | H85: Type VI secretion protein Rhs | I85: - | J85: - | K85: -
B86: Hyp93 | C86: 145 | D86: 2 | E86: Enterobacteriaceae | F86: 1 (Lelliottia) | G86: 99.3 | H86: Hypothetical protein | I86: - | J86: - | K86: -
B87: Imm26 | C87: 163 | D87: 1 | E87: Enterobacteriaceae | F87: 1 (Escherichia) | G87: - | H87: Immunity protein 26 | I87: pfam15428 | J87: 1.70E-15 | K87: Immunity protein 26
B88: InsE | C88: 118 | D88: 1 | E88: Enterobacteriaceae | F88: 1 (Citrobacter Clade A) | G88: - | H88: Transposase | I88: COG2963 | J88: 4.41E-18 | K88: Transposase and inactivated derivatives
B89: IS2TnpA | C89: 121 | D89: 2 | E89: Enterobacteriaceae | F89: 1 (Escherichia) | G89: 100.0 | H89: IS2 repressor TnpA | I89: PRK09413 | J89: 2.45e-72 | K89: IS2 repressor TnpA
B90: ISAs1Tnp | C90: 378 | D90: 3 (1 strain has two copies) | E90: Enterobacteriaceae | F90: 1 (Escherichia) | G90: 85.9 | H90: ISAs1 family transposase | I90: pfam13808 | J90: 3.42E-40 | K90: DDE Tnp1 associated protein
B91: IspD | C91: 463 | D91: 1 | E91: Enterobacteriaceae | F91: 1 (Enterobacter) | G91: - | H91: Bifunctional cytidylyltransferase/SDR family oxidoreductase | I91: cd02516 | J91: 8.88E-78 | K91: CDP-ME synthetase
B92: KpsS1 | C92: 406 | D92: 2 | E92: Enterobacteriaceae | F92: 1 (Escherichia) | G92: 100.0 | H92: beta-3-deoxy-D-manno-oct-2-ulosonic acid (Kdo)-transferase | I92: cd16438 | J92: 5.78E-05 | K92: beta-3-deoxy-D-manno-oct-2-ulosonic acid (Kdo)-transferase KpsS like
B93: KpsS2 | C93: 377 | D93: 14 | E93: Enterobacteriaceae | F93: 2 | G93: 86.8 | H93: beta-3-deoxy-D-manno-oct-2-ulosonic acid (Kdo)-transferase | I93: cd16438 | J93: 1.10E-25 | K93: beta-3-deoxy-D-manno-oct-2-ulosonic acid (Kdo)-transferase KpsS like
B94: KpsS3 | C94: 376 | D94: 1 | E94: Enterobacteriaceae | F94: 1 (Klyuvera) | G94: - | H94: beta-3-deoxy-D-manno-oct-2-ulosonic acid (Kdo)-transferase | I94: cd16438 | J94: 2.73E-30 | K94: beta-3-deoxy-D-manno-oct-2-ulosonic acid (Kdo)-transferase KpsS like
B95: KpsS4 | C95: 378 | D95: 15 | E95: Hafniaceae | F95: 2 | G95: 89.5 | H95: beta-3-deoxy-D-manno-oct-2-ulosonic acid (Kdo)-transferase | I95: cd16438 | J95: 3.24E-25 | K95: beta-3-deoxy-D-manno-oct-2-ulosonic acid (Kdo)-transferase KpsS like
B96: LafV1 | C96: 311 | D96: 112 | E96: Enterobacteriaceae/Erwiniaceae/Hafniaceae/Yersiniaceae | F96: 10 | G96: 63.3 | H96: Predicted N-lysine methylase orthologous to flag-1 FliB methylase | I96: - | J96: - | K96: -
B97: LafV2 | C97: 315 | D97: 2 | E97: Enterobacteriaceae | F97: 1 (Buttiauxella) | G97: 73.3 | H97: Predicted N-lysine methylase orthologous to flag-1 FliB methylase | I97: - | J97: - | K97: -
B98: LafV3 | C98: 318 | D98: 1 | E98: Enterobacteriaceae | F98: 1 (Rouxiella) | G98: - | H98: Predicted N-lysine methylase orthologous to flag-1 FliB methylase | I98: - | J98: - | K98: -
B99: LafV4 | C99: 303 | D99: 1 | E99: Erwiniaceae | F99: 1 (Erwinia) | G99: - | H99: Predicted N-lysine methylase orthologous to flag-1 FliB methylase | I99: - | J99: - | K99: -
B100: LafV5 | C100: 299 | D100: 1 | E100: Erwiniaceae | F100: 1 (Erwinia) | G100: - | H100: Predicted N-lysine methylase orthologous to flag-1 FliB methylase | I100: - | J100: - | K100: -
B101: LafV6 | C101: 311 | D101: 219 | E101: Enterobacteriaceae | F101: 6 | G101: 69.6 | H101: Predicted N-lysine methylase orthologous to flag-1 FliB methylase | I101: - | J101: - | K101: -
B102: LafV7 | C102: 314 | D102: 1 | E102: Enterobacteriaceae | F102: 1 (Pseudescherichia) | G102: - | H102: Predicted N-lysine methylase orthologous to flag-1 FliB methylase | I102: - | J102: - | K102: -
B103: LafV8 | C103: 315 | D103: 1 | E103: Budviciaceae | F103: 1 (Leminorella) | G103: - | H103: Predicted N-lysine methylase orthologous to flag-1 FliB methylase | I103: - | J103: - | K103: -
B104: LafV9 | C104: 228 | D104: 2 | E104: Enterobacteriaceae | F104: 1 (Pluralibacter) | G104: 99.5 | H104: Predicted N-lysine methylase orthologous to flag-1 FliB methylase | I104: - | J104: - | K104: -
B105: LafV10 | C105: 307 | D105: 2 | E105: Enterobacteriaceae | F105: 1 (Siccibacter) | G105: 99.0 | H105: Predicted N-lysine methylase orthologous to flag-1 FliB methylase | I105: - | J105: - | K105: -
B106: LprI | C106: 131 | D106: 8 | E106: Enterobacteriaceae | F106: 1 (Escherichia) | G106: 86.9 | H106: Lysozyme inhibitor protein | I106: pfam07007 | J106: 8.42E-19 | K106: Lysozyme inhibitor LprI
B107: LprI2 | C107: 264 | D107: 2 | E107: Enterobacteriaceae | F107: 1 (Escherichia) | G107: 100.0 | H107: Uncharacterized protein LprI | I107: COG4461 | J107: 5.91E-14 | K107: Uncharacterized protein LprI
B108: LtaS1 | C108: 357 | D108: 1 | E108: Enterobacteriaceae | F108: 1 (Buttiauxella) | G108: - | H108: Lipoteichoic acid synthase | I108: cd16148 | J108: 1.07E-12 | K108: uncharacterized sulfatase subfamily
B109: LtaS2 | C109: 401 | D109: 29 | E109: Enterobacteriaceae/Hafniaceae | F109: 2 | G109: 73.5 | H109: Lipoteichoic acid synthase | I109: cd16015 | J109: 2.18E-15 | K109: Lipoteichoic acid synthase
B110: LuxC | C110: 398 | D110: 1 | E110: Enterobacteriaceae | F110: 1 (Citrobacter Clade A) | H110: Acyl-Coa reductase | I110: cd07080 | J110: 4.92E-29 | K110: Acyl-CoA reductase LuxC
B111: LuxE | C111: 256 | D111: 1 | E111: Enterobacteriaceae | F111: 1 (Citrobacter Clade A) | H111: Acyl-protein synthetase | I111: pfam04443 | J111: 2.63E-41 | K111: Acyl-protein synthetase, LuxE
B112: MisL | C112: 879 | D112: 4 | E112: Budviciaceae | F112: 1 (Pragia) | G112: 96.6 | H112: Autotransporter protein MisL | I112: PRK15313 | J112: 6.51E-97 | K112: Autotransport protein MisL
B113: Mtf11-1 | C113: 180 | D113: 1 | E113: Enterobacteriaceae | F113: 1 (Buttiauxella) | G113: - | H113: Class I SAM-dependent methyltransferase | I113: pfam08241 | J113: 1.00E-17 | K113: Methyltransferase family 11
B114: Mtf11-2 | C114: 416 | D114: 62 | E114: Enterobacteriaceae | F114: 3 | G114: 71.9 | H114: Class I SAM-dependent methyltransferase | I114: pfam08241 | J114: 8.78E-12 | K114: Methyltransferase family 11
B115: Mtf11-3 | C115: 203 | D115: 13 | E115: Hafniaceae | F115: 2 | G115: 98.0 | H115: Class I SAM-dependent methyltransferase | I115: pfam08241 | J115: 3.43E-16 | K115: Methyltransferase family 11
B116: Mtf12 | C116: 214 | D116: 17 | E116: Enterobacteriaceae | F116: 6 | G116: 76.4 | H116: Class I SAM-dependent methyltransferase | I116: pfam08242 | J116: 3.94E-04 | K116: Methyltransferase family 12
B117: Mtf23-1 | C117: 122 | D117: 1 | E117: Enterobacteriaceae | F117: 1 (Cedecea) | G117: - | H117: Methyltransferase domain-containing protein | I117: pfam13489 | J117: 2.26E-04 | K117: Methyltransferase family 23
B118: Mtf23-2 | C118: 198 | D118: 2 | E118: Enterobacteriaceae | F118: 1 (Citrobacter Clade A) | G118: 75.1 | H118: Methyltransferase domain-containing protein | I118: pfam13489 | J118: 1.22E-20 | K118: Methyltransferase family 23
B119: Mtf23-3 | C119: 240 | D119: 2 | E119: Enterobacteriaceae | F119: 1 (Citrobacter Clade A) | G119: 98.7 | H119: Methyltransferase domain-containing protein | I119: pfam13489 | J119: 1.75E-23 | K119: Methyltransferase family 23
B120: Mtf23-4 | C120: 280 | D120: 1 | E120: Enterobacteriaceae | F120: 1 (Citrobacter Clade A) | G120: - | H120: Methyltransferase domain-containing protein | I120: pfam13489 | J120: 5.91E-07 | K120: Methyltransferase family 23
B121: Mtf24-1 | C121: 220 | D121: 11 | E121: Enterobacteriaceae | F121: 4 | G121: 81.3 | H121: Class I SAM-dependent methyltransferase | I121: pfam13578 | J121: 2.71E-17 | K121: Methyltransferase family 24
B122: Mtf24-2 | C122: 226 | D122: 21 | E122: Enterobacteriaceae | F122: 1 (Citrobacter Clade A) | G122: 99.6 | H122: Class I SAM-dependent methyltransferase | I122: pfam13578 | J122: 3.80E-07 | K122: Methyltransferase family 24
B123: Mtf25-1 | C123: 234 | D123: 1 | E123: Enterobacteriaceae | F123: 1 (Cedecea) | G123: - | H123: Class I SAM-dependent methyltransferase | I123: pfam13649 | J123: 8.87E-17 | K123: Methyltransferase family 25
B124: Mtf25-2 | C124: 245 | D124: 4 | E124: Hafniaceae | F124: 2 | G124: 94.8 | H124: Class I SAM-dependent methyltransferase | I124: pfam13649 | J124: 4.77E-12 | K124: Methyltransferase family 25
B125: NchS | C125: 340 | D125: 5 | E125: Yersiniaceae | F125: 1 (Yersinia) | G125: 98.8 | H125: Cyanide hydrolase | I125: cd07564 | J125: 2.08E-156 | K125: Nitrilases, cyanide hydratase (CH)s, and similar proteins (class 1 nitrilases)
B126: NeuD | C126: 214 | D126: 1 | E126: Enterobacteriaceae | F126: 1 (Citrobacter Clade A) | G126: - | H126: Sugar O-acyltransferase | I126: TIGR03570 | J126: 2.65e-61 | K126: sugar O-acyltransferase, sialic acid O-acetyltransferase NeuD family
B127: NtpT1 | C127: 263 | D127: 1 | E127: Enterobacteriaceae | F127: 1 (Cedecea) | G127: - | H127: NTP transferase | I127: cd02523 | J127: 1.09E-20 | K127: Phosphocholine cytidylyltransferase
B128: NtpT2 | C128: 218 | D128: 5 | E128: Enterobacteriaceae/Hafniaceae | F128: 3 | G128: 81.9 | H128: NTP transferase | I128: cd02523 | J128: 1.74E-22 | K128: Phosphocholine cytidylyltransferase
B129: NtpT3 | C129: 225 | D129: 1 | E129: Enterobacteriaceae | F129: 1 (Cedecea) | G129: - | H129: NTP transferase | I129: cd02523 | J129: 3.02E-22 | K129: Phosphocholine cytidylyltransferase
B130: OmpR | C130: 137 | D130: 4 | E130: Budviciaceae | F130: 1 (Pragia) | G130: 99.6 | H130: Transcriptional regulator | I130: smart00862 | J130: 2.39E-03 | K130: Transcriptional regulatory protein, C terminal
B131: OptS | C131: 80 | D131: 2 | E131: Enterobacteriaceae | F131: 1 (Escherichia) | G131: 100.0 | H131: O-phosphoseryl acetylase | I131: PRK06253 | J131: 5.94E-03 | K131: O-phosphoseryl-tRNA synthetase
B132: ParB | C132: 129 | D132: 1 | E132: Enterobacteriaceae | F132: 1 (Cedecea) | G132: - | H132: ParB/Srx_like nuclease | I132: cd16400 | J132: 1.43E-30 | K132: ParB/Srx_like nuclease and putative transcriptional regulators related to SbnI
B133: PldC | C133: 202 | D133: 2 | E133: Enterobacteriaceae | F133: 1 (Escherichia) | G133: 100.0 | H133: Phospholipase | I133: PLN02866 | J133: 4.35E-17 | K133: phospholipase D
B134: Pm0188 | C134: 386 | D134: 35 | E134: Enterobacteriaceae | F134: 1 (Citrobacter Clade A) | G134: 86.8 | H134: Sialyltransferase | I134: pfam11477 | J134: 2.54E-16 | K134: Sialyltransferase
B135: Pst | C135: 280 | D135: 1 | E135: Enterobacteriaceae | F135: 1 (Escherichia) | G135: - | H135: Pesticin anti-bacterial toxin-like protein | I135: cd16903 | J135: 1.88e-73 | K135: pesticin C-terminal-like domain of uncharacterized proteins
B136: RacX | C136: 249 | D136: 1 | E136: Enterobacteriaceae | F136: 1 (Cedecea) | G136: - | H136: Aspartate/glutamate racemase | I136: pfam01177 | J136: 6.32E-46 | K136: Asp/Glu/Hydantoin racemase
B137: RhsA | C137: 1556 | D137: 1 | E137: Enterobacteriaceae | F137: 1 (Escherichia) | G137: - | H137: RHS repeat protein | I137: COG3209 | J137: 8.53E-44 | K137: Uncharacterized conserved protein RhaS, contains 28 RHS repeats
B138: RimI | C138: 157 | D138: 1 | E138: Enterobacteriaceae | F138: 1 (Escherichia) | G138: - | H138: GNAT family acetyltransferase | I138: pfam00583 | J138: 1.69E-11 | K138: Acetyltransferase (GNAT) family
B139: Sel1 | C139: 148 | D139: 2 | E139: Budviciaceae | F139: 1 (Budvicia) | G139: 100.0 | H139: Sel1 repeat family protein | I139: pfam08238 | J139: 2.43E-04 | K139: Sel1 repeat; This short repeat is found in the Sel1 protein. It is related to TPR repeats.
B140: SerB | C140: 202 | D140: 5 | E140: Enterobacteriaceae/Hafniaceae | F140: 3 | G140: 82.7 | H140: Phosphoserine phosphatase | I140: COG0560 | J140: 9.35E-26 | K140: Phosphoserine phosphatase
B141: TagB1 | C141: 354 | D141: 5 | E141: Enterobacteriaceae | F141: 3 | G141: 71.7 | H141: CDP-glycerol:poly(glycerophosphate) glycerophosphotransferase | I141: COG1887 | J141: 3.89E-07 | K141: CDP-glycerol glycerophosphotransferase, TagB/SpsB family
B142: TagB2 | C142: 379 | D142: 1 | E142: Enterobacteriaceae | F142: 1 (Cedecea) | G142: - | H142: CDP-glycerol:poly(glycerophosphate) glycerophosphotransferase | I142: COG1887 | J142: 2.45E-07 | K142: CDP-glycerol glycerophosphotransferase, TagB/SpsB family
B143: TagB3 | C143: 371 | D143: 10 | E143: Erwiniaceae/Hafniaceae | F143: 2 | G143: 90.5 | H143: CDP-glycerol:poly(glycerophosphate) glycerophosphotransferase | I143: COG1887 | J143: 4.32E-03 | K143: CDP-glycerol glycerophosphotransferase, TagB/SpsB family
B144: TagB4 | C144: 389 | D144: 4 | E144: Enterobacteriaceae | F144: 2 | G144: 77.9 | H144: CDP-glycerol:poly(glycerophosphate) glycerophosphotransferase | I144: COG1887 | J144: 2.58E-20 | K144: CDP-glycerol glycerophosphotransferase, TagB/SpsB family
B145: TagB5 | C145: 398 | D145: 36 | E145: Enterobacteriaceae | F145: 1 (Citrobacter Clade A) | G145: 90.4 | H145: CDP-glycerol:poly(glycerophosphate) glycerophosphotransferase | I145: COG1887 | J145: 6.80E-18 | K145: CDP-glycerol glycerophosphotransferase, TagB/SpsB family
B146: TagB6 | C146: 396 | D146: 4 | E146: Enterobacteriaceae | F146: 1 (Lelliottia) | G146: 100.0 | H146: CDP-glycerol:poly(glycerophosphate) glycerophosphotransferase | I146: COG1887 | J146: 1.39E-16 | K146: CDP-glycerol glycerophosphotransferase, TagB/SpsB family
B147: TagB7 | C147: 619 | D147: 1 | E147: Enterobacteriaceae | F147: 1 (Klyuvera) | G147: - | H147: CDP-glycerol:poly(glycerophosphate) glycerophosphotransferase | I147: COG1887 | J147: 1.63E-03 | K147: CDP-glycerol glycerophosphotransferase, TagB/SpsB family
B148: TagB8 | C148: 373 | D148: 4 | E148: Hafniaceae | F148: 2 | G148: 93.4 | H148: CDP-glycerol:poly(glycerophosphate) glycerophosphotransferase | I148: COG1887 | J148: 1.30E-03 | K148: CDP-glycerol glycerophosphotransferase, TagB/SpsB family
B149: TagD | C149: 133 | D149: 235 (8 strains have 2 copies) | E149: Enterobacteriaceae/Erwiniaceae/Hafniaceae | F149: 10 | G149: 78.5 | H149: Glycerol-3-phosphate cytidylyltransferase TagD | I149: cd02171 | J149: 4.09E-46 | K149: glycerol-3-phosphate cytidylyltransferase
B150: TktA1 | C150: 275 | D150: 1 | E150: Enterobacteriaceae | F150: 1 (Citrobacter Clade A) | G150: - | H150: Transketolase | I150: COG3959 | J150: 1.78E-93 | K150: Transketolase, N-terminal subunit
B151: TktA2 | C151: 320 | D151: 1 | E151: Enterobacteriaceae | F151: 1 (Citrobacter Clade A) | G151: - | H151: Transketolase | I151: COG3958 | J151: 1.34e-107 | K151: Transketolase, C-terminal subunit
B152: Tra8 | C152: 363 | D152: 1 | E152: Enterobacteriaceae | F152: 1 (Citrobacter Clade A) | G152: - | H152: IS30 family transposase | I152: COG2826 | J152: 1.78E-141 | K152: Transposase and inactivated derivatives, IS30 family
B153: VgrG | C153: 395 | D153: 1 | E153: Enterobacteriaceae | F153: 1 (Escherichia) | G153: - | H153: Type VI secretion system tip protein VgrG | I153: COG3501 | J153: 0.0 | K153: type VI secretion system Vgr family protein
B154: WbbJ | C154: 219 | D154: 12 | E154: Enterobacteriaceae | F154: 1 (Citrobacter Clade A) | G154: 92.9 | H154: Maltose O-acyltransferase (MAT)-like-protein | I154: cd04647 | J154: 3.33E-25 | K154: Maltose O-acyltransferase (MAT)-like
B155: WcaK | C155: 351 | D155: 14 | E155: Enterobacteriaceae | F155: 1 (Citrobacter Clade A) | G155: 88.4 | H155: Polysaccharide pyruvyl transferase | I155: pfam04230 | J155: 2.59E-16 | K155: Polysaccharide pyruvyl transferase
B156: WecE | C156: 371 | D156: 29 | E156: Enterobacteriaceae/Hafniaceae | F156: 3 | G156: 79.5 | H156: dTDP-4-amino-4,6-dideoxygalactose transaminase | I156: COG0399 | J156: 4.48e-103 | K156: dTDP-4-amino-4,6-dideoxygalactose transaminase
B157: YfaZ | C157: 180 | D157: 2 | E157: Budviciaceae | F157: 1 (Budvicia) | G157: 100.0 | H157: Outer membrane protein | I157: pfam07437 | J157: 1.27E-74 | K157: YfaZ precursor
A159: Variable region VR2
B160: Chap | C160: 118 | D160: 2 | E160: Enterobacteriaceae | F160: 1 (Lelliottia) | G160: 98.3 | H160: CHAP domain containing protein | I160: pfam05257 | J160: 2.60E-03 | K160: CHAP domain with predicted amidase function
B161: DUF943 | C161: 107 | D161: 3 | E161: Enterobacteriaceae | F161: 1 (Cedecea) | G161: 61.4 | H161: Protein of unknown function (DUF943) | I161: pfam06092 | J161: 2.01E-23 | K161: Enterobacterial putative membrane protein (DUF943)
B162: DUF2931 | C162: 221 | D162: 3 (2-4 copies in each) | E162: Enterobacteriaceae | F162: 1 (Lelliottia) | G162: 73.1 | H162: Protein of unknown function (DUF2931) | I162: pfam11153 | J162: 9.13E-44 | K162: Protein of unknown function (DUF2931)
B163: DUF3289 | C163: 124 | D163: 3 | E163: Enterobacteriaceae | F163: 1 (Cedecea) | G163: 90.0 | H163: Protein of unknown function (DUF3289) | I163: pfam11692 | J163: 5.46E-12 | K163: Protein of unknown function (DUF3289)
B164: DUF3828 | C164: 148 | D164: 2 | E164: Enterobacteriaceae | F164: 1 (Lelliottia) | G164: 94.0 | H164: Protein of unknown function (DUF3828) | I164: pfam12883 | J164: 5.38E-06 | K164: Protein of unknown function (DUF3828) | N164: A phospholipase A1 antibacterial Type VI secretion effector ...https://onlinelibrary.wiley.com › doi › full › mmi by N Flaugnatti - ‎2016
B165: Hcp2 | C165: 663 | D165: 3 | E165: Enterobacteriaceae | F165: 1 (Lelliottia) | G165: 93.7 | H165: Type VI secretion system effector Hcp | I165: COG3157 | J165: 1.00E-40 | K165: Type VI protein secretion system component Hcp (secreted cytotoxin)
B166: HipB1 | C166: 99 | D166: 46 | E166: Enterobacteriaceae | F166: 1 (Escherichia) | G166: 99.1 | H166: HipB antitoxin | I166: smart00530 | J166: 3.71E-10 | K166: Helix-turn-helix XRE-family like protein
B167: HipB2 | C167: 198 | D167: 2 | E167: Budviciaceae | F167: 1 (Budvicia) | G167: 100.0 | H167: HipB antitoxin | I167: smart00530 | J167: 3.68E-10 | K167: Helix-turn-helix XRE-family like protein
B168: Hyp3 | C168: 155 | D168: 3 | E168: Enterobacteriaceae | F168: 1 (Buttiauxella) | G168: 81.7 | H168: Hypothetical protein | I168: - | J168: - | K168: -
B169: Hyp4 | C169: 158 | D169: 84 | E169: Enterobacteriaceae | F169: 2 | G169: 69.8 | H169: Hypothetical protein | I169: - | J169: - | K169: -
B170: Hyp9 | C170: 48 | D170: 8 | E170: Enterobacteriaceae | F170: 1 (Citrobacter Clade A) | G170: 99.5 | H170: Hypothetical protein | I170: - | J170: - | K170: -
B171: Hyp90 | C171: 141 | D171: 4 | E171: Enterobacteriaceae | F171: 1 (Lelliottia) | G171: 100.0 | H171: Hypothetical protein | I171: - | J171: - | K171: -
B172: Hyp94 | C172: 138 | D172: 1 | E172: Erwiniaceae | F172: 1 (Erwinia) | G172: - | H172: Hypothetical protein | I172: - | J172: - | K172: -
B173: Hyp95 | C173: 154 | D173: 1 | E173: Enterobacteriaceae | F173: 1 (Mangrovibacter) | G173: 96.7 | H173: Hypothetical protein | I173: - | J173: - | K173: -
B174: Hyp96 | C174: 172 | D174: 1 | E174: Enterobacteriaceae | F174: 1 (Pantoea) | G174: - | H174: Hypothetical protein | I174: - | J174: - | K174: -
B175: Hyp97 | C175: 179 | D175: 4 | E175: Budviciaceae | F175: 1 (Pragia) | G175: 99.2 | H175: Hypothetical protein | I175: - | J175: - | K175: -
B176: Hyp98 | C176: 154 | D176: 1 | E176: Yersiniaceae | F176: 1 (Chania) | G176: - | H176: Hypothetical protein | I176: - | J176: - | K176: -
B177: Hyp99 | C177: 157 | D177: 1 | E177: Enterobacteriaceae | F177: 1 (Pseudescherichia) | G177: - | H177: Hypothetical protein | I177: - | J177: - | K177: -
B178: Hyp100 | C178: 116 | D178: 28 | E178: Hafniaceae | F178: 2 | G178: 91.3 | H178: Hypothetical protein | I178: - | J178: - | K178: -
B179: Hyp101 | C179: 153 | D179: 83 | E179: Enterobacteriaceae/Erwiniaceae | F179: 8 | G179: 60.2 | H179: Hypothetical protein | I179: - | J179: - | K179: -
B180: Hyp102 | C180: 146 | D180: 209 | E180: Yersiniaceae | F180: 1 (Yersinia) | G180: 70.6 | H180: Hypothetical protein | I180: - | J180: - | K180: -
B181: Hyp103 | C181: 159 | D181: 1 | E181: Enterobacteriaceae | F181: 1 (Metakosakonia) | G181: - | H181: Hypothetical protein | I181: - | J181: - | K181: -
B182: Hyp104 | C182: 157 | D182: 1 | E182: Budviciaceae | F182: 1 (Leminorella) | G182: - | H182: Hypothetical protein | I182: - | J182: - | K182: -
B183: Hyp105 | C183: 157 | D183: 1 | E183: Enterobacteriaceae | F183: 1 (Pseudescherichia) | G183: - | H183: Hypothetical protein | I183: - | J183: - | K183: -
B184: Hyp106 | C184: 139 | D184: 2 | E184: Enterobacteriaceae | F184: 1 (Siccibacter) | G184: 98.5 | H184: Hypothetical protein | I184: - | J184: - | K184: -
B185: Ntox44 | C185: 130 | D185: 4 | E185: Enterobacteriaceae | F185: 1 (Lelliottia) | G185: 100.0 | H185: Rnase toxin | I185: pfam15607 | J185: 4.52E-16 | K185: Bacterial toxin 44
B186: ParE | C186: 113 | D186: 46 | E186: Enterobacteriaceae | F186: 1 (Escherichia) | G186: 99.8 | H186: ParE toxin (type II toxin-antitoxin system) | I186: cl21503 | J186: 1.24E-44 | K186: ParE toxin superfamily
A188: Elsewhere in flag-2 locus
B189: AsnC | C189: 97 | D189: 1 | E189: Enterobacteriaceae | F189: 1 (Citrobacter Clade A) | G189: - | H189: Helix-turn-helix domain protein | I189: pfam13404 | J189: 9.59E-03 | K189: AsnC-type helix-turn-helix domain
B190: Circ1 | C190: 422 | D190: 1 | E190: Enterobacteriaceae | F190: 1 (Citrobacter Clade A) | G190: - | H190: Phage DNA circulation protein | I190: pfam07157 | J190: 8.33E-36 | K190: DNA circularisation protein N-terminus
B191: Circ2 | C191: 449 | D191: 3 | E191: Enterobacteriaceae | F191: 1 (Citrobacter Clade B) | G191: 100.0 | H191: Phage DNA circulation protein | I191: pfam07157 | J191: 8.33E-36 | K191: DNA circularisation protein N-terminus
B192: Circ3 | C192: 495 | D192: 1 | E192: Enterobacteriaceae | F192: 1 (Escherichia) | G192: - | H192: Phage DNA circulation protein | I192: pfam07157 | J192: 8.33E-36 | K192: DNA circularisation protein N-terminus
B193: ClpV | C193: 110 | D193: 3 | E193: Enterobacteriaceae | F193: 1 (Citrobacter Clade B) | G193: 100.0 | H193: ClpV ATPase | I193: TIGR03345 | J193: 2.54E-05 | K193: type VI secretion ATPase, ClpV1 family
B194: CytB | C194: 120 | D194: 1 | E194: Enterobacteriaceae | F194: 1 (Citrobacter Clade A) | G194: - | H194: Prokaryotic cytochrome b561 | I194: pfam01292 | J194: 8.02E-03 | K194: Prokaryotic cytochrome b561
B195: Dcm | C195: 474 | D195: 21 | E195: Enterobacteriaceae | F195: 1 (Escherichia) | G195: 98.6 | H195: DNA cytosine methylase | I195: PRK10458 | J195: 0.0 | K195: DNA cytosine methylase
B196: DUF1210 | C196: 184 | D196: 4 | E196: Budviciaceae | F196: 1 (Pragia) | G196: 99.0 | H196: Hypothetical protein | I196: PRK15303 | J196: 4.13E-03 | K196: Protein of unknown function (DUF1120)
B197: DUF1804 | C197: 166 | D197: 3 | E197: Enterobacteriaceae | F197: 1 (Citrobacter Clade B) | G197: 100.0 | H197: Protein of unknown function (DUF1804) | I197: pfam08822 | J197: 1.55E-57 | K197: Protein of unknown function (DUF1804)
B198: DUF2531 | C198: 134 | D198: 1 | E198: Enterobacteriaceae | F198: 1 (Escherichia) | G198: - | H198: Protein of unknown function (DUF2513) | I198: pfam10711 | J198: 4.67E-06 | K198: Hypothetical protein (DUF2513)
B199: DUF2635-1 | C199: 63 | D199: 1 | E199: Enterobacteriaceae | F199: 1 (Citrobacter Clade A) | G199: - | H199: Phage protein of unknown function (DUF2635) | I199: pfam10948 | J199: 1.25E-09 | K199: Protein of unknown function (DUF2635)
B200: DUF2635-2 | C200: 68 | D200: 1 | E200: Enterobacteriaceae | F200: 1 (Escherichia) | G200: - | H200: Phage protein of unknown function (DUF2635) | I200: pfam10948 | J200: 3.45E-20 | K200: Protein of unknown function (DUF2635)
B201: DUF2635-3 | C201: 80 | D201: 3 | E201: Enterobacteriaceae | F201: 1 (Citrobacter Clade B) | G201: 100.0 | H201: Phage protein of unknown function (DUF2635) | I201: pfam10948 | J201: 7.33E-06 | K201: Protein of unknown function (DUF2635)
B202: DUF2730-1 | C202: 101 | D202: 1 | E202: Enterobacteriaceae | F202: 1 (Citrobacter Clade A) | G202: - | H202: Protein of unknown function (DUF2730) | I202: pfam10805 | J202: 9.12e-23 | K202: Protein of unknown function (DUF2730)
... 154 more rows
